Workbook

Sheet Juni2010 (2) (hidden)
A1: Løn | B1: 1 juni 2010 - 30 juni 2010 | Q1: Time beregning:
A2: Lønart | G2: 3025 | H2: 3425 | I2: 3426 | J2: 3600 | K2: 3602 | L2: 3605 | M2: 3610 | N2: 9091 | O2: 9092 | Q2: Betalt pause ved vagt over 5 timer | U2: 00:25:00 | V2: minutter | W2: 00:00:00 | X2: 06:00:00 | Y2: 18:00:00 | Z2: 14:00:00
A3: Dato | B3: Dag | D3: Vagt | E3: Start | F3: Slut | G3: Time SID | H3: Overtid 1-3 time | I3: Overtid 4 - time | J3: Aftenstillæg | K3: Nattillæg 00-06 | L3: Søndags tillæg | M3: Delt tjenste
A4: 2010-04-01 | B4: =PROPER(TEXT(A4,"ddd")) -> To | C4: =HelligdagsNavn(A4,0,0) -> Skærtorsdag | D4: 111 | E4: =IF($D4="","",IF(VLOOKUP($D4,Timeberegning!A$4:B$153,2)=0,"",VLOOKUP($D4,Timeberegning!A$4:B$153,2))) -> 05:54:00 | F4: =IF($D4="","",IF(VLOOKUP($D4,Timeberegning!A$4:C$153,3)="","",VLOOKUP($D4,Timeberegning!A$4:C$153,3))) -> 14:57:00 | G4: =IF($D4="","",VLOOKUP($D4,Timeberegning!$A$4:$O$10,13)) -> 08:54:00 | J4: =IF(E4<>"",IF(WEEKDAY(A4,2)<>6,IF(E4>F4,(F4-MAX(E4,(18/24))+(E4>F4))-F4,IF(F4>Y$2,(F4-MAX(E4,(18/24))),"")),IF(E4>F4,(F4-MAX(E4,(14/24))+(E4>F4))-F4,IF(F4>Z$2,(F4-MAX(E4,(14/24))),""))),"") ->  | K4: =IF(G4<>"",IF(S4<X$2,(X$2-S4),IF(V4<X$2,(V4-W$2),"")),"") -> 00:06:00 | L4: =IF(G4<>0,IF(WEEKDAY(A4,2)=7,G4,""),"") ->  | M4: =IF($D4="","",IF(VLOOKUP($D4,Timeberegning!$A$4:$O$101,15)="","",VLOOKUP($D4,Timeberegning!$A$4:$O$101,15))) ->  | N4: =IF(SUM(H4:I4)=0,"",SUM(H4:I4)) ->  | Q4: =IF(E4="","",HOUR(E4)) -> 5 | R4: =IF(E4="","",MINUTE(E4)) -> 54 | S4: =IF(E4="","",TIME(HOUR(E4),MINUTE(E4),0)) -> 05:54:00 | T4: =IF(F4="","",HOUR(F4)) -> 14 | U4: =IF(F4="","",MINUTE(F4)) -> 57 | V4: =TIME(HOUR(F4),MINUTE(F4),0) -> 14:57:00
A5: 2010-04-02 | B5: =PROPER(TEXT(A5,"ddd")) -> Fr | C5: =HelligdagsNavn(A5,0,0) -> Langfredag | D5: 134 | E5: =IF($D5="","",IF(VLOOKUP($D5,Timeberegning!A$4:B$153,2)=0,"",VLOOKUP($D5,Timeberegning!A$4:B$153,2))) -> 07:07:00 | F5: =IF($D5="","",IF(VLOOKUP($D5,Timeberegning!A$4:C$153,3)="","",VLOOKUP($D5,Timeberegning!A$4:C$153,3))) -> 16:16:00 | G5: =IF($D5="","",VLOOKUP($D5,Timeberegning!$A$4:$O$153,13)) -> 08:34:00 | J5: =IF(E5<>"",IF(WEEKDAY(A5,2)<>6,IF(E5>F5,(F5-MAX(E5,(18/24))+(E5>F5))-F5,IF(F5>Y$2,(F5-MAX(E5,(18/24))),"")),IF(E5>F5,(F5-MAX(E5,(14/24))+(E5>F5))-F5,IF(F5>Z$2,(F5-MAX(E5,(14/24))),""))),"") ->  | L5: =IF(G5<>0,IF(WEEKDAY(A5,2)=7,G5,""),"") ->  | M5: =IF($D5="","",IF(VLOOKUP($D5,Timeberegning!$A$4:$O$101,15)="","",VLOOKUP($D5,Timeberegning!$A$4:$O$101,15))) ->  | N5: =IF(SUM(H5:I5)=0,"",SUM(H5:I5)) ->  | Q5: 7 | R5: 7 | S5: 07:07:00 | T5: 16 | U5: 16 | V5: =TIME(HOUR(F5),MINUTE(F5),0) -> 16:16:00
A6: 2010-04-03 | B6: =PROPER(TEXT(A6,"ddd")) -> Lø | D6: 612 | E6: =IF($D6="","",IF(VLOOKUP($D6,Timeberegning!A$4:B$153,2)=0,"",VLOOKUP($D6,Timeberegning!A$4:B$153,2))) -> 14:55:00 | F6: =IF($D6="","",IF(VLOOKUP($D6,Timeberegning!A$4:C$153,3)="","",VLOOKUP($D6,Timeberegning!A$4:C$153,3))) -> 00:22:00 | G6: =IF($D6="","",VLOOKUP($D6,Timeberegning!$A$4:$O$153,13)) -> 08:46:00 | J6: =IF(E6<>"",IF(WEEKDAY(A6,2)<>6,IF(E6>F6,(F6-MAX(E6,(18/24))+(E6>F6))-F6,IF(F6>Y$2,(F6-MAX(E6,(18/24))),"")),IF(E6>F6,(F6-MAX(E6,(14/24))+(E6>F6))-F6,IF(F6>Z$2,(F6-MAX(E6,(14/24))),""))),"") -> 09:05:00 | K6: 00:22:00 | M6: =IF($D6="","",IF(VLOOKUP($D6,Timeberegning!$A$4:$O$101,15)="","",VLOOKUP($D6,Timeberegning!$A$4:$O$101,15))) ->  | Q6: 14 | R6: 55 | S6: 14:55:00 | T6: 0 | U6: 22 | V6: =TIME(HOUR(F6),MINUTE(F6),0) -> 00:22:00
A7: 2010-04-04 | B7: Sø | C7: Påskedag | D7: 711 | E7: =IF($D7="","",IF(VLOOKUP($D7,Timeberegning!A$4:B$153,2)=0,"",VLOOKUP($D7,Timeberegning!A$4:B$153,2))) -> 13:55:00 | F7: =IF($D7="","",IF(VLOOKUP($D7,Timeberegning!A$4:C$153,3)="","",VLOOKUP($D7,Timeberegning!A$4:C$153,3))) -> 22:22:00 | G7: =IF($D7="","",VLOOKUP($D7,Timeberegning!$A$4:$O$153,13)) -> 08:24:00 | J7: 04:22:00 | L7: 08:24:00 | M7: =IF($D7="","",IF(VLOOKUP($D7,Timeberegning!$A$4:$O$101,15)="","",VLOOKUP($D7,Timeberegning!$A$4:$O$101,15))) ->  | O7: =IF($D7="","",IF(VLOOKUP($D7,Timeberegning!$A$4:$P$101,16)="","",VLOOKUP($D7,Timeberegning!$A$4:$P$101,16))) ->  | Q7: 13 | R7: 55 | S7: 13:55:00 | T7: 22 | U7: 22 | V7: =TIME(HOUR(F7),MINUTE(F7),0) -> 22:22:00
A8: 2010-04-05 | B8: Ma | C8: 2. Påskedag | D8: 122 | E8: =IF($D8="","",IF(VLOOKUP($D8,Timeberegning!A$4:B$153,2)=0,"",VLOOKUP($D8,Timeberegning!A$4:B$153,2))) -> 04:36:00 | F8: =IF($D8="","",IF(VLOOKUP($D8,Timeberegning!A$4:C$153,3)="","",VLOOKUP($D8,Timeberegning!A$4:C$153,3))) -> 11:58:00 | G8: =IF($D8="","",VLOOKUP($D8,Timeberegning!$A$4:$O$153,13)) -> 06:47:00 | K8: 01:24:00 | M8: =IF($D8="","",IF(VLOOKUP($D8,Timeberegning!$A$4:$O$101,15)="","",VLOOKUP($D8,Timeberegning!$A$4:$O$101,15))) ->  | O8: =IF($D8="","",IF(VLOOKUP($D8,Timeberegning!$A$4:$P$101,16)="","",VLOOKUP($D8,Timeberegning!$A$4:$P$101,16))) ->  | Q8: 4 | R8: 36 | S8: 04:36:00 | T8: 11 | U8: 58 | V8: =TIME(HOUR(F8),MINUTE(F8),0) -> 11:58:00
A9: 2010-04-06 | B9: Ti | D9: 124 | E9: =IF($D9="","",IF(VLOOKUP($D9,Timeberegning!A$4:B$153,2)=0,"",VLOOKUP($D9,Timeberegning!A$4:B$153,2))) -> 05:20:00 | F9: =IF($D9="","",IF(VLOOKUP($D9,Timeberegning!A$4:C$153,3)="","",VLOOKUP($D9,Timeberegning!A$4:C$153,3))) -> 12:53:00 | G9: =IF($D9="","",VLOOKUP($D9,Timeberegning!$A$4:$O$153,13)) -> 07:29:00 | K9: 00:40:00 | L9: =IF(G9<>0,IF(WEEKDAY(A9,2)=7,G9,""),"") ->  | M9: =IF($D9="","",IF(VLOOKUP($D9,Timeberegning!$A$4:$O$101,15)="","",VLOOKUP($D9,Timeberegning!$A$4:$O$101,15))) ->  | O9: =IF($D9="","",IF(VLOOKUP($D9,Timeberegning!$A$4:$P$101,16)="","",VLOOKUP($D9,Timeberegning!$A$4:$P$101,16))) ->  | Q9: 5 | R9: 20 | S9: 05:20:00 | T9: 12 | U9: 53 | V9: =IF(F9="","",TIME(HOUR(F9),MINUTE(F9),0)) -> 12:53:00
A10: 2010-04-07 | B10: On | D10: 606 | E10: =IF($D10="","",IF(VLOOKUP($D10,Timeberegning!A$4:B$153,2)=0,"",VLOOKUP($D10,Timeberegning!A$4:B$153,2))) -> 06:07:00 | F10: =IF($D10="","",IF(VLOOKUP($D10,Timeberegning!A$4:C$153,3)="","",VLOOKUP($D10,Timeberegning!A$4:C$153,3))) -> 15:15:00 | G10: =IF($D10="","",IF(VLOOKUP($D10,Timeberegning!$A$4:$O$153,13)="","",VLOOKUP($D10,Timeberegning!$A$4:$O$153,13))) -> 08:46:00 | L10: =IF(G10<>0,IF(WEEKDAY(A10,2)=7,G10,""),"") ->  | M10: =IF($D10="","",IF(VLOOKUP($D10,Timeberegning!$A$4:$O$101,15)="","",VLOOKUP($D10,Timeberegning!$A$4:$O$101,15))) ->  | O10: =IF($D10="","",IF(VLOOKUP($D10,Timeberegning!$A$4:$P$101,16)="","",VLOOKUP($D10,Timeberegning!$A$4:$P$101,16))) ->  | Q10: 6 | R10: 7 | S10: 06:07:00 | T10: 15 | U10: 15 | V10: 15:15:00
A11: 2010-04-08 | B11: To | D11: 122 | E11: =IF($D11="","",IF(VLOOKUP($D11,Timeberegning!A$4:B$153,2)=0,"",VLOOKUP($D11,Timeberegning!A$4:B$153,2))) -> 04:36:00 | F11: =IF($D11="","",IF(VLOOKUP($D11,Timeberegning!A$4:C$153,3)="","",VLOOKUP($D11,Timeberegning!A$4:C$153,3))) -> 11:58:00 | G11: =IF($D11="","",IF(VLOOKUP($D11,Timeberegning!$A$4:$O$153,13)="","",VLOOKUP($D11,Timeberegning!$A$4:$O$153,13))) -> 06:47:00 | K11: 01:24:00 | L11: =IF(G11<>0,IF(WEEKDAY(A11,2)=7,G11,""),"") ->  | M11: =IF($D11="","",IF(VLOOKUP($D11,Timeberegning!$A$4:$O$101,15)="","",VLOOKUP($D11,Timeberegning!$A$4:$O$101,15))) ->  | O11: =IF($D11="","",IF(VLOOKUP($D11,Timeberegning!$A$4:$P$101,16)="","",VLOOKUP($D11,Timeberegning!$A$4:$P$101,16))) ->  | Q11: 4 | R11: 36 | S11: 04:36:00 | T11: 11 | U11: 58 | V11: 11:58:00
A12: 2010-04-09 | B12: Fr | D12: afsp. | E12: =IF($D12="","",IF(VLOOKUP($D12,Timeberegning!A$4:B$153,2)=0,"",VLOOKUP($D12,Timeberegning!A$4:B$153,2))) ->  | F12: =IF($D12="","",IF(VLOOKUP($D12,Timeberegning!A$4:C$153,3)="","",VLOOKUP($D12,Timeberegning!A$4:C$153,3))) ->  | G12: =IF($D12="","",IF(VLOOKUP($D12,Timeberegning!$A$4:$O$153,13)="","",VLOOKUP($D12,Timeberegning!$A$4:$O$153,13))) ->  | M12: =IF($D12="","",IF(VLOOKUP($D12,Timeberegning!$A$4:$O$101,15)="","",VLOOKUP($D12,Timeberegning!$A$4:$O$101,15))) ->  | O12: =IF($D12="","",IF(VLOOKUP($D12,Timeberegning!$A$4:$P$101,16)="","",VLOOKUP($D12,Timeberegning!$A$4:$P$101,16))) -> 07:24:00
A13: 2010-04-10 | B13: Lø | D13: 121 | E13: =IF($D13="","",IF(VLOOKUP($D13,Timeberegning!A$4:B$153,2)=0,"",VLOOKUP($D13,Timeberegning!A$4:B$153,2))) -> 04:36:00 | F13: =IF($D13="","",IF(VLOOKUP($D13,Timeberegning!A$4:C$153,3)="","",VLOOKUP($D13,Timeberegning!A$4:C$153,3))) -> 11:24:00 | G13: =IF($D13="","",IF(VLOOKUP($D13,Timeberegning!$A$4:$O$153,13)="","",VLOOKUP($D13,Timeberegning!$A$4:$O$153,13))) -> 06:45:00 | K13: 01:24:00 | M13: =IF($D13="","",IF(VLOOKUP($D13,Timeberegning!$A$4:$O$101,15)="","",VLOOKUP($D13,Timeberegning!$A$4:$O$101,15))) ->  | O13: =IF($D13="","",IF(VLOOKUP($D13,Timeberegning!$A$4:$P$101,16)="","",VLOOKUP($D13,Timeberegning!$A$4:$P$101,16))) ->  | Q13: 4 | R13: 36 | S13: 04:36:00 | T13: 11 | U13: 24 | V13: 11:24:00
A14: 2010-04-11 | B14: Sø | D14: 606 | E14: =IF($D14="","",IF(VLOOKUP($D14,Timeberegning!A$4:B$153,2)=0,"",VLOOKUP($D14,Timeberegning!A$4:B$153,2))) -> 06:07:00 | F14: =IF($D14="","",IF(VLOOKUP($D14,Timeberegning!A$4:C$153,3)="","",VLOOKUP($D14,Timeberegning!A$4:C$153,3))) -> 15:15:00 | G14: =IF($D14="","",IF(VLOOKUP($D14,Timeberegning!$A$4:$O$153,13)="","",VLOOKUP($D14,Timeberegning!$A$4:$O$153,13))) -> 08:46:00 | L14: 08:46:00 | M14: =IF($D14="","",IF(VLOOKUP($D14,Timeberegning!$A$4:$O$101,15)="","",VLOOKUP($D14,Timeberegning!$A$4:$O$101,15))) ->  | O14: =IF($D14="","",IF(VLOOKUP($D14,Timeberegning!$A$4:$P$101,16)="","",VLOOKUP($D14,Timeberegning!$A$4:$P$101,16))) ->  | Q14: 6 | R14: 7 | S14: 06:07:00 | T14: 15 | U14: 15 | V14: 15:15:00
A15: 2010-04-12 | B15: Ma | D15: 606 | E15: =IF($D15="","",IF(VLOOKUP($D15,Timeberegning!A$4:B$153,2)=0,"",VLOOKUP($D15,Timeberegning!A$4:B$153,2))) -> 06:07:00 | F15: =IF($D15="","",IF(VLOOKUP($D15,Timeberegning!A$4:C$153,3)="","",VLOOKUP($D15,Timeberegning!A$4:C$153,3))) -> 15:15:00 | G15: =IF($D15="","",IF(VLOOKUP($D15,Timeberegning!$A$4:$O$153,13)="","",VLOOKUP($D15,Timeberegning!$A$4:$O$153,13))) -> 08:46:00 | M15: =IF($D15="","",IF(VLOOKUP($D15,Timeberegning!$A$4:$O$101,15)="","",VLOOKUP($D15,Timeberegning!$A$4:$O$101,15))) ->  | O15: =IF($D15="","",IF(VLOOKUP($D15,Timeberegning!$A$4:$P$101,16)="","",VLOOKUP($D15,Timeberegning!$A$4:$P$101,16))) ->  | Q15: 6 | R15: 7 | S15: 06:07:00 | T15: 15 | U15: 15 | V15: 15:15:00
A16: 2010-04-13 | B16: Ti | D16: 127 | E16: =IF($D16="","",IF(VLOOKUP($D16,Timeberegning!A$4:B$153,2)=0,"",VLOOKUP($D16,Timeberegning!A$4:B$153,2))) -> 05:55:00 | F16: =IF($D16="","",IF(VLOOKUP($D16,Timeberegning!A$4:C$153,3)="","",VLOOKUP($D16,Timeberegning!A$4:C$153,3))) -> 16:04:00 | G16: =IF($D16="","",IF(VLOOKUP($D16,Timeberegning!$A$4:$O$153,13)="","",VLOOKUP($D16,Timeberegning!$A$4:$O$153,13))) -> 06:29:00 | K16: 00:05:00 | M16: =IF($D16="","",IF(VLOOKUP($D16,Timeberegning!$A$4:$O$101,15)="","",VLOOKUP($D16,Timeberegning!$A$4:$O$101,15))) -> 1 | O16: =IF($D16="","",IF(VLOOKUP($D16,Timeberegning!$A$4:$P$101,16)="","",VLOOKUP($D16,Timeberegning!$A$4:$P$101,16))) ->  | Q16: 5 | R16: 55 | S16: 05:55:00 | T16: 16 | U16: 4 | V16: 16:04:00
A17: 2010-04-14 | B17: On | D17: x | E17: =IF($D17="","",IF(VLOOKUP($D17,Timeberegning!A$4:B$153,2)=0,"",VLOOKUP($D17,Timeberegning!A$4:B$153,2))) ->  | F17: =IF($D17="","",IF(VLOOKUP($D17,Timeberegning!A$4:C$153,3)="","",VLOOKUP($D17,Timeberegning!A$4:C$153,3))) ->  | G17: =IF($D17="","",IF(VLOOKUP($D17,Timeberegning!$A$4:$O$153,13)="","",VLOOKUP($D17,Timeberegning!$A$4:$O$153,13))) ->  | M17: =IF($D17="","",IF(VLOOKUP($D17,Timeberegning!$A$4:$O$101,15)="","",VLOOKUP($D17,Timeberegning!$A$4:$O$101,15))) ->  | O17: =IF($D17="","",IF(VLOOKUP($D17,Timeberegning!$A$4:$P$101,16)="","",VLOOKUP($D17,Timeberegning!$A$4:$P$101,16))) -> 
A18: 2010-04-15 | B18: To | D18: x | E18: =IF($D18="","",IF(VLOOKUP($D18,Timeberegning!A$4:B$153,2)=0,"",VLOOKUP($D18,Timeberegning!A$4:B$153,2))) ->  | F18: =IF($D18="","",IF(VLOOKUP($D18,Timeberegning!A$4:C$153,3)="","",VLOOKUP($D18,Timeberegning!A$4:C$153,3))) ->  | G18: =IF($D18="","",IF(VLOOKUP($D18,Timeberegning!$A$4:$O$153,13)="","",VLOOKUP($D18,Timeberegning!$A$4:$O$153,13))) ->  | M18: =IF($D18="","",IF(VLOOKUP($D18,Timeberegning!$A$4:$O$101,15)="","",VLOOKUP($D18,Timeberegning!$A$4:$O$101,15))) ->  | O18: =IF($D18="","",IF(VLOOKUP($D18,Timeberegning!$A$4:$P$101,16)="","",VLOOKUP($D18,Timeberegning!$A$4:$P$101,16))) -> 
A19: 2010-04-16 | B19: Fr | D19: 142 | E19: =IF($D19="","",IF(VLOOKUP($D19,Timeberegning!A$4:B$153,2)=0,"",VLOOKUP($D19,Timeberegning!A$4:B$153,2))) -> 15:05:00 | F19: =IF($D19="","",IF(VLOOKUP($D19,Timeberegning!A$4:C$153,3)="","",VLOOKUP($D19,Timeberegning!A$4:C$153,3))) -> 00:22:00 | G19: =IF($D19="","",IF(VLOOKUP($D19,Timeberegning!$A$4:$O$153,13)="","",VLOOKUP($D19,Timeberegning!$A$4:$O$153,13))) -> 08:31:00 | J19: 06:00:00 | K19: 00:22:00 | M19: =IF($D19="","",IF(VLOOKUP($D19,Timeberegning!$A$4:$O$101,15)="","",VLOOKUP($D19,Timeberegning!$A$4:$O$101,15))) ->  | O19: =IF($D19="","",IF(VLOOKUP($D19,Timeberegning!$A$4:$P$101,16)="","",VLOOKUP($D19,Timeberegning!$A$4:$P$101,16))) ->  | Q19: 15 | R19: 5 | S19: 15:05:00 | T19: 0 | U19: 22 | V19: 00:22:00
A20: 2010-04-17 | B20: Lø | D20: 143f | E20: =IF($D20="","",IF(VLOOKUP($D20,Timeberegning!A$4:B$153,2)=0,"",VLOOKUP($D20,Timeberegning!A$4:B$153,2))) -> 16:05:00 | F20: =IF($D20="","",IF(VLOOKUP($D20,Timeberegning!A$4:C$153,3)="","",VLOOKUP($D20,Timeberegning!A$4:C$153,3))) -> 01:47:00 | G20: =IF($D20="","",IF(VLOOKUP($D20,Timeberegning!$A$4:$O$153,13)="","",VLOOKUP($D20,Timeberegning!$A$4:$O$153,13))) -> 08:56:00 | J20: 07:55:00 | K20: 01:47:00 | M20: =IF($D20="","",IF(VLOOKUP($D20,Timeberegning!$A$4:$O$101,15)="","",VLOOKUP($D20,Timeberegning!$A$4:$O$101,15))) ->  | O20: =IF($D20="","",IF(VLOOKUP($D20,Timeberegning!$A$4:$P$101,16)="","",VLOOKUP($D20,Timeberegning!$A$4:$P$101,16))) ->  | Q20: 16 | R20: 5 | S20: 16:05:00 | T20: 1 | U20: 47 | V20: 01:47:00
A21: 2010-04-18 | B21: Sø | D21: 147 | E21: =IF($D21="","",IF(VLOOKUP($D21,Timeberegning!A$4:B$153,2)=0,"",VLOOKUP($D21,Timeberegning!A$4:B$153,2))) -> 17:25:00 | F21: =IF($D21="","",IF(VLOOKUP($D21,Timeberegning!A$4:C$153,3)="","",VLOOKUP($D21,Timeberegning!A$4:C$153,3))) -> 01:26:00 | G21: =IF($D21="","",IF(VLOOKUP($D21,Timeberegning!$A$4:$O$153,13)="","",VLOOKUP($D21,Timeberegning!$A$4:$O$153,13))) -> 07:22:00 | J21: 06:00:00 | K21: 01:26:00 | L21: 07:22:00 | M21: =IF($D21="","",IF(VLOOKUP($D21,Timeberegning!$A$4:$O$101,15)="","",VLOOKUP($D21,Timeberegning!$A$4:$O$101,15))) ->  | O21: =IF($D21="","",IF(VLOOKUP($D21,Timeberegning!$A$4:$P$101,16)="","",VLOOKUP($D21,Timeberegning!$A$4:$P$101,16))) ->  | Q21: 17 | R21: 25 | S21: 17:25:00 | T21: 1 | U21: 26 | V21: 01:26:00
A22: 2010-04-19 | B22: Ma | D22: 146 | E22: =IF($D22="","",IF(VLOOKUP($D22,Timeberegning!A$4:B$153,2)=0,"",VLOOKUP($D22,Timeberegning!A$4:B$153,2))) -> 17:05:00 | F22: =IF($D22="","",IF(VLOOKUP($D22,Timeberegning!A$4:C$153,3)="","",VLOOKUP($D22,Timeberegning!A$4:C$153,3))) -> 01:10:00 | G22: =IF($D22="","",IF(VLOOKUP($D22,Timeberegning!$A$4:$O$153,13)="","",VLOOKUP($D22,Timeberegning!$A$4:$O$153,13))) -> 07:24:00 | J22: 06:00:00 | K22: 01:10:00 | M22: =IF($D22="","",IF(VLOOKUP($D22,Timeberegning!$A$4:$O$101,15)="","",VLOOKUP($D22,Timeberegning!$A$4:$O$101,15))) ->  | O22: =IF($D22="","",IF(VLOOKUP($D22,Timeberegning!$A$4:$P$101,16)="","",VLOOKUP($D22,Timeberegning!$A$4:$P$101,16))) ->  | Q22: 17 | R22: 5 | S22: 17:05:00 | T22: 1 | U22: 10 | V22: 01:10:00
A23: 2010-04-20 | B23: Ti | D23: 145 | E23: =IF($D23="","",IF(VLOOKUP($D23,Timeberegning!A$4:B$153,2)=0,"",VLOOKUP($D23,Timeberegning!A$4:B$153,2))) -> 16:58:00 | F23: =IF($D23="","",IF(VLOOKUP($D23,Timeberegning!A$4:C$153,3)="","",VLOOKUP($D23,Timeberegning!A$4:C$153,3))) -> 00:42:00 | G23: =IF($D23="","",IF(VLOOKUP($D23,Timeberegning!$A$4:$O$153,13)="","",VLOOKUP($D23,Timeberegning!$A$4:$O$153,13))) -> 07:18:00 | J23: 06:00:00 | K23: 00:42:00 | M23: =IF($D23="","",IF(VLOOKUP($D23,Timeberegning!$A$4:$O$101,15)="","",VLOOKUP($D23,Timeberegning!$A$4:$O$101,15))) ->  | O23: =IF($D23="","",IF(VLOOKUP($D23,Timeberegning!$A$4:$P$101,16)="","",VLOOKUP($D23,Timeberegning!$A$4:$P$101,16))) ->  | Q23: 16 | R23: 58 | S23: 16:58:00 | T23: 0 | U23: 42 | V23: 00:42:00
A24: 2010-04-21 | B24: On | D24: afsp. | E24: =IF($D24="","",IF(VLOOKUP($D24,Timeberegning!A$4:B$153,2)=0,"",VLOOKUP($D24,Timeberegning!A$4:B$153,2))) ->  | F24: =IF($D24="","",IF(VLOOKUP($D24,Timeberegning!A$4:C$153,3)="","",VLOOKUP($D24,Timeberegning!A$4:C$153,3))) ->  | G24: =IF($D24="","",IF(VLOOKUP($D24,Timeberegning!$A$4:$O$153,13)="","",VLOOKUP($D24,Timeberegning!$A$4:$O$153,13))) ->  | M24: =IF($D24="","",IF(VLOOKUP($D24,Timeberegning!$A$4:$O$101,15)="","",VLOOKUP($D24,Timeberegning!$A$4:$O$101,15))) ->  | O24: =IF($D24="","",IF(VLOOKUP($D24,Timeberegning!$A$4:$P$101,16)="","",VLOOKUP($D24,Timeberegning!$A$4:$P$101,16))) -> 07:24:00
A25: 2010-04-22 | B25: To | D25: 715 | E25: =IF($D25="","",IF(VLOOKUP($D25,Timeberegning!A$4:B$153,2)=0,"",VLOOKUP($D25,Timeberegning!A$4:B$153,2))) -> 16:48:00 | F25: =IF($D25="","",IF(VLOOKUP($D25,Timeberegning!A$4:C$153,3)="","",VLOOKUP($D25,Timeberegning!A$4:C$153,3))) -> 01:47:00 | G25: =IF($D25="","",IF(VLOOKUP($D25,Timeberegning!$A$4:$O$153,13)="","",VLOOKUP($D25,Timeberegning!$A$4:$O$153,13))) -> 08:17:00 | J25: 06:00:00 | K25: 01:47:00 | M25: =IF($D25="","",IF(VLOOKUP($D25,Timeberegning!$A$4:$O$101,15)="","",VLOOKUP($D25,Timeberegning!$A$4:$O$101,15))) ->  | O25: =IF($D25="","",IF(VLOOKUP($D25,Timeberegning!$A$4:$P$101,16)="","",VLOOKUP($D25,Timeberegning!$A$4:$P$101,16))) ->  | Q25: 16 | R25: 48 | S25: 16:48:00 | T25: 1 | U25: 47 | V25: 01:47:00
A26: 2010-04-23 | B26: Fr | E26: =IF($D26="","",IF(VLOOKUP($D26,Timeberegning!A$4:B$153,2)=0,"",VLOOKUP($D26,Timeberegning!A$4:B$153,2))) ->  | F26: =IF($D26="","",IF(VLOOKUP($D26,Timeberegning!A$4:C$153,3)="","",VLOOKUP($D26,Timeberegning!A$4:C$153,3))) ->  | G26: =IF($D26="","",IF(VLOOKUP($D26,Timeberegning!$A$4:$O$153,13)="","",VLOOKUP($D26,Timeberegning!$A$4:$O$153,13))) ->  | M26: =IF($D26="","",IF(VLOOKUP($D26,Timeberegning!$A$4:$O$101,15)="","",VLOOKUP($D26,Timeberegning!$A$4:$O$101,15))) ->  | O26: =IF($D26="","",IF(VLOOKUP($D26,Timeberegning!$A$4:$P$101,16)="","",VLOOKUP($D26,Timeberegning!$A$4:$P$101,16))) -> 
A27: 2010-04-24 | B27: Lø | D27: 612 | E27: =IF($D27="","",IF(VLOOKUP($D27,Timeberegning!A$4:B$153,2)=0,"",VLOOKUP($D27,Timeberegning!A$4:B$153,2))) -> 14:55:00 | F27: =IF($D27="","",IF(VLOOKUP($D27,Timeberegning!A$4:C$153,3)="","",VLOOKUP($D27,Timeberegning!A$4:C$153,3))) -> 00:22:00 | G27: =IF($D27="","",IF(VLOOKUP($D27,Timeberegning!$A$4:$O$153,13)="","",VLOOKUP($D27,Timeberegning!$A$4:$O$153,13))) -> 08:46:00 | J27: 09:05:00 | K27: 00:22:00 | M27: =IF($D27="","",IF(VLOOKUP($D27,Timeberegning!$A$4:$O$101,15)="","",VLOOKUP($D27,Timeberegning!$A$4:$O$101,15))) ->  | O27: =IF($D27="","",IF(VLOOKUP($D27,Timeberegning!$A$4:$P$101,16)="","",VLOOKUP($D27,Timeberegning!$A$4:$P$101,16))) ->  | Q27: 14 | R27: 55 | S27: 14:55:00 | T27: 0 | U27: 22 | V27: 00:22:00
A28: 2010-04-25 | B28: Sø | E28: =IF($D28="","",IF(VLOOKUP($D28,Timeberegning!A$4:B$153,2)=0,"",VLOOKUP($D28,Timeberegning!A$4:B$153,2))) ->  | F28: =IF($D28="","",IF(VLOOKUP($D28,Timeberegning!A$4:C$153,3)="","",VLOOKUP($D28,Timeberegning!A$4:C$153,3))) ->  | G28: =IF($D28="","",IF(VLOOKUP($D28,Timeberegning!$A$4:$O$153,13)="","",VLOOKUP($D28,Timeberegning!$A$4:$O$153,13))) ->  | M28: =IF($D28="","",IF(VLOOKUP($D28,Timeberegning!$A$4:$O$101,15)="","",VLOOKUP($D28,Timeberegning!$A$4:$O$101,15))) ->  | O28: =IF($D28="","",IF(VLOOKUP($D28,Timeberegning!$A$4:$P$101,16)="","",VLOOKUP($D28,Timeberegning!$A$4:$P$101,16))) -> 
A29: 2010-04-26 | B29: Ma | E29: =IF($D29="","",IF(VLOOKUP($D29,Timeberegning!A$4:B$153,2)=0,"",VLOOKUP($D29,Timeberegning!A$4:B$153,2))) ->  | F29: =IF($D29="","",IF(VLOOKUP($D29,Timeberegning!A$4:C$153,3)="","",VLOOKUP($D29,Timeberegning!A$4:C$153,3))) ->  | G29: =IF($D29="","",IF(VLOOKUP($D29,Timeberegning!$A$4:$O$153,13)="","",VLOOKUP($D29,Timeberegning!$A$4:$O$153,13))) ->  | M29: =IF($D29="","",IF(VLOOKUP($D29,Timeberegning!$A$4:$O$101,15)="","",VLOOKUP($D29,Timeberegning!$A$4:$O$101,15))) ->  | O29: =IF($D29="","",IF(VLOOKUP($D29,Timeberegning!$A$4:$P$101,16)="","",VLOOKUP($D29,Timeberegning!$A$4:$P$101,16))) -> 
A30: 2010-04-27 | B30: Ti | E30: =IF($D30="","",IF(VLOOKUP($D30,Timeberegning!A$4:B$153,2)=0,"",VLOOKUP($D30,Timeberegning!A$4:B$153,2))) ->  | F30: =IF($D30="","",IF(VLOOKUP($D30,Timeberegning!A$4:C$153,3)="","",VLOOKUP($D30,Timeberegning!A$4:C$153,3))) ->  | G30: =IF($D30="","",IF(VLOOKUP($D30,Timeberegning!$A$4:$O$153,13)="","",VLOOKUP($D30,Timeberegning!$A$4:$O$153,13))) ->  | M30: =IF($D30="","",IF(VLOOKUP($D30,Timeberegning!$A$4:$O$101,15)="","",VLOOKUP($D30,Timeberegning!$A$4:$O$101,15))) ->  | O30: =IF($D30="","",IF(VLOOKUP($D30,Timeberegning!$A$4:$P$101,16)="","",VLOOKUP($D30,Timeberegning!$A$4:$P$101,16))) -> 
A31: 2010-04-28 | B31: On | D31: afsp. | E31: =IF($D31="","",IF(VLOOKUP($D31,Timeberegning!A$4:B$153,2)=0,"",VLOOKUP($D31,Timeberegning!A$4:B$153,2))) ->  | F31: =IF($D31="","",IF(VLOOKUP($D31,Timeberegning!A$4:C$153,3)="","",VLOOKUP($D31,Timeberegning!A$4:C$153,3))) ->  | G31: =IF($D31="","",IF(VLOOKUP($D31,Timeberegning!$A$4:$O$153,13)="","",VLOOKUP($D31,Timeberegning!$A$4:$O$153,13))) ->  | M31: =IF($D31="","",IF(VLOOKUP($D31,Timeberegning!$A$4:$O$101,15)="","",VLOOKUP($D31,Timeberegning!$A$4:$O$101,15))) ->  | O31: =IF($D31="","",IF(VLOOKUP($D31,Timeberegning!$A$4:$P$101,16)="","",VLOOKUP($D31,Timeberegning!$A$4:$P$101,16))) -> 07:24:00
A32: 2010-04-29 | B32: =IF(A32="","",PROPER(TEXT(A32,"ddd"))) -> To | D32: afsp. | E32: =IF($D32="","",IF(VLOOKUP($D32,Timeberegning!A$4:B$153,2)=0,"",VLOOKUP($D32,Timeberegning!A$4:B$153,2))) ->  | F32: =IF($D32="","",IF(VLOOKUP($D32,Timeberegning!A$4:C$153,3)="","",VLOOKUP($D32,Timeberegning!A$4:C$153,3))) ->  | G32: =IF($D32="","",IF(VLOOKUP($D32,Timeberegning!$A$4:$O$153,13)="","",VLOOKUP($D32,Timeberegning!$A$4:$O$153,13))) ->  | M32: =IF($D32="","",IF(VLOOKUP($D32,Timeberegning!$A$4:$O$101,15)="","",VLOOKUP($D32,Timeberegning!$A$4:$O$101,15))) ->  | O32: =IF($D32="","",IF(VLOOKUP($D32,Timeberegning!$A$4:$P$101,16)="","",VLOOKUP($D32,Timeberegning!$A$4:$P$101,16))) -> 07:24:00
A33: 2010-04-30 | B33: =IF(A33="","",PROPER(TEXT(A33,"ddd"))) -> Fr | C33: Store Bededag | D33: x | E33: =IF($D33="","",IF(VLOOKUP($D33,Timeberegning!A$4:B$153,2)=0,"",VLOOKUP($D33,Timeberegning!A$4:B$153,2))) ->  | F33: =IF($D33="","",IF(VLOOKUP($D33,Timeberegning!A$4:C$153,3)="","",VLOOKUP($D33,Timeberegning!A$4:C$153,3))) ->  | G33: =IF($D33="","",IF(VLOOKUP($D33,Timeberegning!$A$4:$O$153,13)="","",VLOOKUP($D33,Timeberegning!$A$4:$O$153,13))) ->  | M33: =IF($D33="","",IF(VLOOKUP($D33,Timeberegning!$A$4:$O$101,15)="","",VLOOKUP($D33,Timeberegning!$A$4:$O$101,15))) ->  | O33: =IF($D33="","",IF(VLOOKUP($D33,Timeberegning!$A$4:$P$101,16)="","",VLOOKUP($D33,Timeberegning!$A$4:$P$101,16))) -> 
E34: =IF($D34="","",IF(VLOOKUP($D34,Timeberegning!A$4:B$153,2)=0,"",VLOOKUP($D34,Timeberegning!A$4:B$153,2))) ->  | F34: =IF($D34="","",IF(VLOOKUP($D34,Timeberegning!A$4:C$153,3)="","",VLOOKUP($D34,Timeberegning!A$4:C$153,3))) ->  | G34: =IF($D34="","",IF(VLOOKUP($D34,Timeberegning!$A$4:$O$153,13)="","",VLOOKUP($D34,Timeberegning!$A$4:$O$153,13))) ->  | M34: =IF($D34="","",IF(VLOOKUP($D34,Timeberegning!$A$4:$O$101,15)="","",VLOOKUP($D34,Timeberegning!$A$4:$O$101,15))) ->  | O34: =IF($D34="","",IF(VLOOKUP($D34,Timeberegning!$A$4:$P$101,16)="","",VLOOKUP($D34,Timeberegning!$A$4:$P$101,16))) -> 
A35: Total timer | G35: =IF(SUM(G9:G34)<>"0",SUM(G4:G34),"") -> 6.324305556 | H35: =IF(SUM(H4:H34)<>"0",SUM(H4:H34),"") -> 0 | I35: 0 | J35: 2.51875 | K35: 0.5423611111 | L35: 1.022222222 | M35: 1 | N35: =SUM(N4:N34) -> 0 | O35: =SUM(O4:O34) -> 1.233333333
A36: Timer 1/100 | G36: =IF(G35<>"",ROUND(G35*24,2),"") -> 151.78 | H36: =IF(H35<>"",ROUND(H35*24,2),"") -> 0 | I36: 0 | J36: 60.45 | K36: 13.02 | L36: 24.53 | N36: 0 | O36: 29.6
A37: Satser | G37: =Satser!B7 -> 125.76 | H37: =Satser!B9 -> 59.81 | I37: =Satser!B12 -> 119.62 | J37: 18.8 | K37: 21.81 | L37: 28.68 | M37: 67
G38: =IF(G35<>"",G36*G37,"") -> 19087.8528 | H38: =IF(H35<>"",H36*H37,"") -> 0 | I38: 0 | J38: 1136.46 | K38: 283.9662 | L38: 703.5204 | M38: =IF(M35<>"",M35*M37,"") -> 67
A40: Lønart
A41: 3025 | G41: =G35 -> 6.324305556
A42: 3425 | G42: =H35 -> 0
A43: 3426 | G43: =I35 -> 0
A44: Timer | G44: =SUM(G41:G43) -> 6.324305556 | H44: =IF(G44<>"",ROUND(G44*24,2),"") -> 151.78
H45: =G37*H44 -> 19087.8528

Sheet september2010
A1: Løn | B1: =PROPER(TEXT(A4,"dd mmmm åååå")) & PROPER(TEXT(AC1," - dd mmmm åååå")) -> 01 December 2015 - 31 December 2015 | I1: Uge : | J1: =IF(A4="","",TRUNC((A4-WEEKDAY(A4,2)-DATE(YEAR(A4+4-WEEKDAY(A4,2)),1,-10))/7)) -> 49 | K1: - | M1: =IF(A25="","",TRUNC((A25-WEEKDAY(A25,2)-DATE(YEAR(A25+4-WEEKDAY(A25,2)),1,-10))/7)) -> 52 | S1: Time beregning: | AC1: =IF(A32="",A31,IF(A33="",A32,IF(A34="",A33,A34))) -> 2015-12-31
A2: Lønart | S2: Betalt pause ved vagt over 5 timer | W2: 00:25:00 | X2: minutter | Y2: 00:00:00 | Z2: 06:00:00 | AA2: 17:00:00 | AB2: 14:00:00
A3: Dato | B3: Dag | D3: Start | E3: Slut | F3: Arb. Tid | G3: Overtid 1-2 time | H3: Overtid 3-4 time | J3: Aftenstillæg alle dage 17-23 | L3: Nattillæg 20-08 | N3: Lørdag tillæg 06 - 06 | O3: Søndag tillæg 06-06 | P3: Optjent afspadsering | Q3: Afholdt afspadsering
A4: 2015-12-01 | B4: =PROPER(TEXT(A4,"ddd")) -> Ti | C4: =HelligdagsNavn(A4,0,0) ->  | D4: 14:00:00 | E4: 02:00:00 | F4: =IF(D4="","",(E4-D4)+(D4>E4)) -> 0.5 | J4: =IF(D4="","",(IF(E4-MAX(D4,(17/24))+(E4<D4)<0,0,E4-MAX(D4,(17/24))+(E4<D4)))-(IF((E4-MAX(D4,(23/24))+(E4<D4))<0,0,(E4-MAX(D4,(23/24))+(E4<D4))))) -> 06:00:00 | L4: =IF(F4="","",IF((E4-MAX(D4,(20/24))+(D4>E4))<0,0,(IF(E4<D4,IF(E4>8/24,8/24,E4),E4)-MAX(D4,(20/24)))+(D4>E4))+(8/24)-MIN(D4,(8/24))) -> 06:00:00 | O4: =IF(D4="","",IF(D4<6/24,6/24-D4,"")) ->  | P4: =IF(F4="","",IF(F4<>0,IF(C4<>"",IF(G4+H4=0,Satser!B$23,((G4+H4)*24)*(24/1440)+Satser!B$23),IF(G4+H4=0,"",((G4+H4)*24)*(24/1440))),"")) ->  | S4: =IF(D4="","",HOUR(D4)) -> 14 | T4: =IF(D4="","",MINUTE(D4)) -> 0 | U4: =IF(D4="","",TIME(HOUR(D4),MINUTE(D4),0)) -> 14:00:00 | V4: =IF(E4="","",HOUR(E4)) -> 2 | W4: =IF(E4="","",MINUTE(E4)) -> 0 | X4: =IF(E4="","",TIME(HOUR(E4),MINUTE(E4),0)) -> 02:00:00
A5: =A4+1 -> 2015-12-02 | B5: =PROPER(TEXT(A5,"ddd")) -> On | C5: =HelligdagsNavn(A5,0,0) ->  | D5: 08:00:00 | E5: 22:00:00 | F5: 0.5833333333 | J5: =IF(D5="","",(IF(E5-MAX(D5,(17/24))+(E5<D5)<0,0,E5-MAX(D5,(17/24))+(E5<D5)))-(IF((E5-MAX(D5,(23/24))+(E5<D5))<0,0,(E5-MAX(D5,(23/24))+(E5<D5))))) -> 05:00:00 | L5: =IF(F5="","",IF((E5-MAX(D5,(20/24))+(D5>E5))<0,0,(IF(E5<D5,IF(E5>8/24,8/24,E5),E5)-MAX(D5,(20/24)))+(D5>E5))+(8/24)-MIN(D5,(8/24))) -> 02:00:00 | P5: =IF(F5="","",IF(F5<>0,IF(C5<>"",IF(G5+H5=0,Satser!B$23,((G5+H5)*24)*(24/1440)+Satser!B$23),IF(G5+H5=0,"",((G5+H5)*24)*(24/1440))),"")) ->  | S5: 8 | T5: 0 | U5: 08:00:00 | V5: 22 | W5: 0 | X5: 22:00:00
A6: =A5+1 -> 2015-12-03 | B6: =PROPER(TEXT(A6,"ddd")) -> To | D6: 22:00:00 | E6: 05:00:00 | F6: 0.2916666667 | J6: 01:00:00 | L6: 07:00:00 | P6: =IF(F6="","",IF(F6<>0,IF(C6<>"",IF(G6+H6=0,Satser!B$23,((G6+H6)*24)*(24/1440)+Satser!B$23),IF(G6+H6=0,"",((G6+H6)*24)*(24/1440))),"")) ->  | S6: 22 | T6: 0 | U6: 22:00:00 | V6: 5 | W6: 0 | X6: =IF(E6="","",TIME(HOUR(E6),MINUTE(E6),0)) -> 05:00:00
A7: 2015-12-04 | B7: Fr | D7: 17:45:00 | E7: 1 | F7: 0.2604166667 | J7: 05:15:00 | L7: 04:00:00 | P7: =IF(F7="","",IF(F7<>0,IF(C7<>"",IF(G7+H7=0,Satser!B$23,((G7+H7)*24)*(24/1440)+Satser!B$23),IF(G7+H7=0,"",((G7+H7)*24)*(24/1440))),"")) ->  | S7: 17 | T7: 45 | U7: 17:45:00 | V7: 0 | W7: 0 | X7: 00:00:00
A8: 2015-12-05 | B8: Lø | N8: =IF(E8<D8,IF(E8>6/24,E8-6/24,""),"") ->  | P8: =IF(F8="","",IF(F8<>0,IF(C8<>"",IF(G8+H8=0,Satser!B$23,((G8+H8)*24)*(24/1440)+Satser!B$23),IF(G8+H8=0,"",((G8+H8)*24)*(24/1440))),"")) -> 
A9: 2015-12-06 | B9: Sø | D9: 17:45:00 | E9: 1 | F9: 0.2604166667 | J9: 05:15:00 | L9: 04:00:00 | N9: =IF(D9="","",IF((E9-MAX(D9,(6/24))+(D9>E9))<0,0,(IF(E9<D9,IF(E9>6/24,6/24,E9),E9)-MAX(D9,(6/24)))+(D9>E9))+(6/24)-MIN(E9,(6/24))) -> 0.2604166667 | O9: =IF(E9<D9,IF(E9>6/24,E9-6/24,""),"") ->  | P9: =IF(F9="","",IF(F9<>0,IF(C9<>"",IF(G9+H9=0,Satser!B$23,((G9+H9)*24)*(24/1440)+Satser!B$23),IF(G9+H9=0,"",((G9+H9)*24)*(24/1440))),"")) ->  | S9: 17 | T9: 45 | U9: 17:45:00 | V9: 0 | W9: 0 | X9: 00:00:00
A10: 2015-12-07 | B10: Ma | L10: =IF(F10="","",IF((E10-MAX(D10,(18/24))+(D10>E10))<0,0,(IF(E10<D10,IF(E10>2/24,2/24,E10),E10)-MAX(D10,(18/24)))+(D10>E10))+(2/24)-MIN(D10,(2/24))) ->  | N10: =IF(D10="","",IF(D10<6/24,IF(E10<6/24,6/24-D10-(6/24-E10),6/24-D10),"00:00")) ->  | O10: =IF(D10="","",IF((E10-MAX(D10,(6/24))+(D10>E10))<0,0,(IF(E10<D10,IF(E10>6/24,6/24,E10),E10)-MAX(D10,(6/24)))+(D10>E10))+(6/24)-MIN(E10,(6/24))) ->  | P10: =IF(F10="","",IF(F10<>0,IF(C10<>"",IF(G10+H10=0,Satser!B$23,((G10+H10)*24)*(24/1440)+Satser!B$23),IF(G10+H10=0,"",((G10+H10)*24)*(24/1440))),"")) -> 
A11: =A10+1 -> 2015-12-08 | B11: =PROPER(TEXT(A11,"ddd")) -> Ti | C11: =HelligdagsNavn(A11,0,0) ->  | F11: =IF(D11="","",(E11-D11)+(D11>E11)) ->  | J11: =IF(D11="","",(IF(E11-MAX(D11,(17/24))+(E11<D11)<0,0,E11-MAX(D11,(17/24))+(E11<D11)))-(IF((E11-MAX(D11,(23/24))+(E11<D11))<0,0,(E11-MAX(D11,(23/24))+(E11<D11))))) ->  | L11: =IF(F11="","",IF((E11-MAX(D11,(18/24))+(D11>E11))<0,0,(IF(E11<D11,IF(E11>2/24,2/24,E11),E11)-MAX(D11,(18/24)))+(D11>E11))+(2/24)-MIN(D11,(2/24))) ->  | O11: =IF(D11="","",IF(D11<6/24,6/24-D11,"")) ->  | P11: =IF(F11="","",IF(F11<>0,IF(C11<>"",IF(G11+H11=0,Satser!B$23,((G11+H11)*24)*(24/1440)+Satser!B$23),IF(G11+H11=0,"",((G11+H11)*24)*(24/1440))),"")) ->  | S11: =IF(D11="","",HOUR(D11)) ->  | T11: =IF(D11="","",MINUTE(D11)) ->  | U11: =IF(D11="","",TIME(HOUR(D11),MINUTE(D11),0)) ->  | V11: =IF(E11="","",HOUR(E11)) ->  | W11: =IF(E11="","",MINUTE(E11)) ->  | X11: =IF(E11="","",TIME(HOUR(E11),MINUTE(E11),0)) -> 
A12: =A11+1 -> 2015-12-09 | B12: =PROPER(TEXT(A12,"ddd")) -> On | C12: =HelligdagsNavn(A12,0,0) ->  | F12: =IF(D12="","",(E12-D12)+(D12>E12)) ->  | J12: =IF(D12="","",(IF(E12-MAX(D12,(17/24))+(E12<D12)<0,0,E12-MAX(D12,(17/24))+(E12<D12)))-(IF((E12-MAX(D12,(23/24))+(E12<D12))<0,0,(E12-MAX(D12,(23/24))+(E12<D12))))) ->  | P12: =IF(F12="","",IF(F12<>0,IF(C12<>"",IF(G12+H12=0,Satser!B$23,((G12+H12)*24)*(24/1440)+Satser!B$23),IF(G12+H12=0,"",((G12+H12)*24)*(24/1440))),"")) ->  | S12: =IF(D12="","",HOUR(D12)) ->  | T12: =IF(D12="","",MINUTE(D12)) ->  | U12: =IF(D12="","",TIME(HOUR(D12),MINUTE(D12),0)) ->  | V12: =IF(E12="","",HOUR(E12)) ->  | W12: =IF(E12="","",MINUTE(E12)) ->  | X12: =IF(E12="","",TIME(HOUR(E12),MINUTE(E12),0)) -> 
A13: =A12+1 -> 2015-12-10 | B13: =PROPER(TEXT(A13,"ddd")) -> To | F13: =IF(D13="","",(E13-D13)+(D13>E13)) ->  | J13: =IF(D13="","",(IF(E13-MAX(D13,(17/24))+(E13<D13)<0,0,E13-MAX(D13,(17/24))+(E13<D13)))-(IF((E13-MAX(D13,(23/24))+(E13<D13))<0,0,(E13-MAX(D13,(23/24))+(E13<D13))))) ->  | P13: =IF(F13="","",IF(F13<>0,IF(C13<>"",IF(G13+H13=0,Satser!B$23,((G13+H13)*24)*(24/1440)+Satser!B$23),IF(G13+H13=0,"",((G13+H13)*24)*(24/1440))),"")) ->  | S13: =IF(D13="","",HOUR(D13)) ->  | T13: =IF(D13="","",MINUTE(D13)) ->  | U13: =IF(D13="","",TIME(HOUR(D13),MINUTE(D13),0)) ->  | V13: =IF(E13="","",HOUR(E13)) ->  | W13: =IF(E13="","",MINUTE(E13)) ->  | X13: =IF(E13="","",TIME(HOUR(E13),MINUTE(E13),0)) -> 
A14: 2015-12-11 | B14: Fr | F14: =IF(D14="","",(E14-D14)+(D14>E14)) ->  | P14: =IF(F14="","",IF(F14<>0,IF(C14<>"",IF(G14+H14=0,Satser!B$23,((G14+H14)*24)*(24/1440)+Satser!B$23),IF(G14+H14=0,"",((G14+H14)*24)*(24/1440))),"")) ->  | S14: =IF(D14="","",HOUR(D14)) ->  | T14: =IF(D14="","",MINUTE(D14)) ->  | U14: =IF(D14="","",TIME(HOUR(D14),MINUTE(D14),0)) ->  | V14: =IF(E14="","",HOUR(E14)) ->  | W14: =IF(E14="","",MINUTE(E14)) ->  | X14: =IF(E14="","",TIME(HOUR(E14),MINUTE(E14),0)) -> 
A15: 2015-12-12 | B15: Lø | F15: =IF(D15="","",(E15-D15)+(D15>E15)) ->  | N15: =IF(D15="","",IF(E15<D15,IF(E15>6/24,E15-6/24,""),"")) ->  | P15: =IF(F15="","",IF(F15<>0,IF(C15<>"",IF(G15+H15=0,Satser!B$23,((G15+H15)*24)*(24/1440)+Satser!B$23),IF(G15+H15=0,"",((G15+H15)*24)*(24/1440))),"")) ->  | S15: =IF(D15="","",HOUR(D15)) ->  | T15: =IF(D15="","",MINUTE(D15)) ->  | U15: =IF(D15="","",TIME(HOUR(D15),MINUTE(D15),0)) ->  | V15: =IF(E15="","",HOUR(E15)) ->  | W15: =IF(E15="","",MINUTE(E15)) ->  | X15: =IF(E15="","",TIME(HOUR(E15),MINUTE(E15),0)) -> 
A16: 2015-12-13 | B16: Sø | F16: =IF(D16="","",(E16-D16)+(D16>E16)) ->  | N16: =IF(D16="","",IF((E16-MAX(D16,(6/24))+(D16>E16))<0,0,(IF(E16<D16,IF(E16>6/24,6/24,E16),E16)-MAX(D16,(6/24)))+(D16>E16))+(6/24)-MIN(E16,(6/24))) ->  | O16: =IF(E16<D16,IF(E16>6/24,E16-6/24,""),"") ->  | P16: =IF(F16="","",IF(F16<>0,IF(C16<>"",IF(G16+H16=0,Satser!B$23,((G16+H16)*24)*(24/1440)+Satser!B$23),IF(G16+H16=0,"",((G16+H16)*24)*(24/1440))),"")) ->  | S16: =IF(D16="","",HOUR(D16)) ->  | T16: =IF(D16="","",MINUTE(D16)) ->  | U16: =IF(D16="","",TIME(HOUR(D16),MINUTE(D16),0)) ->  | V16: =IF(E16="","",HOUR(E16)) ->  | W16: =IF(E16="","",MINUTE(E16)) ->  | X16: =IF(E16="","",TIME(HOUR(E16),MINUTE(E16),0)) -> 
A17: 2015-12-14 | B17: Ma | F17: =IF(D17="","",(E17-D17)+(D17>E17)) ->  | J17: =IF(D17="","",(IF(E17-MAX(D17,(17/24))+(E17<D17)<0,0,E17-MAX(D17,(17/24))+(E17<D17)))-(IF((E17-MAX(D17,(23/24))+(E17<D17))<0,0,(E17-MAX(D17,(23/24))+(E17<D17))))) ->  | L17: =IF(F17="","",IF((E17-MAX(D17,(18/24))+(D17>E17))<0,0,(IF(E17<D17,IF(E17>2/24,2/24,E17),E17)-MAX(D17,(18/24)))+(D17>E17))+(2/24)-MIN(D17,(2/24))) ->  | N17: =IF(D17="","",IF(D17<6/24,IF(E17<6/24,6/24-D17-(6/24-E17),6/24-D17),"00:00")) ->  | O17: =IF(D17="","",IF((E17-MAX(D17,(6/24))+(D17>E17))<0,0,(IF(E17<D17,IF(E17>6/24,6/24,E17),E17)-MAX(D17,(6/24)))+(D17>E17))+(6/24)-MIN(E17,(6/24))) ->  | P17: =IF(F17="","",IF(F17<>0,IF(C17<>"",IF(G17+H17=0,Satser!B$23,((G17+H17)*24)*(24/1440)+Satser!B$23),IF(G17+H17=0,"",((G17+H17)*24)*(24/1440))),"")) ->  | S17: =IF(D17="","",HOUR(D17)) ->  | T17: =IF(D17="","",MINUTE(D17)) ->  | U17: =IF(D17="","",TIME(HOUR(D17),MINUTE(D17),0)) ->  | V17: =IF(E17="","",HOUR(E17)) ->  | W17: =IF(E17="","",MINUTE(E17)) ->  | X17: =IF(E17="","",TIME(HOUR(E17),MINUTE(E17),0)) -> 
A18: =A17+1 -> 2015-12-15 | B18: =PROPER(TEXT(A18,"ddd")) -> Ti | C18: =HelligdagsNavn(A18,0,0) ->  | F18: =IF(D18="","",(E18-D18)+(D18>E18)) ->  | J18: =IF(D18="","",(IF(E18-MAX(D18,(17/24))+(E18<D18)<0,0,E18-MAX(D18,(17/24))+(E18<D18)))-(IF((E18-MAX(D18,(23/24))+(E18<D18))<0,0,(E18-MAX(D18,(23/24))+(E18<D18))))) ->  | L18: =IF(F18="","",IF((E18-MAX(D18,(18/24))+(D18>E18))<0,0,(IF(E18<D18,IF(E18>2/24,2/24,E18),E18)-MAX(D18,(18/24)))+(D18>E18))+(2/24)-MIN(D18,(2/24))) ->  | O18: =IF(D18="","",IF(D18<6/24,6/24-D18,"")) ->  | P18: =IF(F18="","",IF(F18<>0,IF(C18<>"",IF(G18+H18=0,Satser!B$23,((G18+H18)*24)*(24/1440)+Satser!B$23),IF(G18+H18=0,"",((G18+H18)*24)*(24/1440))),"")) ->  | S18: =IF(D18="","",HOUR(D18)) ->  | T18: =IF(D18="","",MINUTE(D18)) ->  | U18: =IF(D18="","",TIME(HOUR(D18),MINUTE(D18),0)) ->  | V18: =IF(E18="","",HOUR(E18)) ->  | W18: =IF(E18="","",MINUTE(E18)) ->  | X18: =IF(E18="","",TIME(HOUR(E18),MINUTE(E18),0)) -> 
A19: =A18+1 -> 2015-12-16 | B19: =PROPER(TEXT(A19,"ddd")) -> On | C19: =HelligdagsNavn(A19,0,0) ->  | F19: =IF(D19="","",(E19-D19)+(D19>E19)) ->  | P19: =IF(F19="","",IF(F19<>0,IF(C19<>"",IF(G19+H19=0,Satser!B$23,((G19+H19)*24)*(24/1440)+Satser!B$23),IF(G19+H19=0,"",((G19+H19)*24)*(24/1440))),"")) ->  | S19: =IF(D19="","",HOUR(D19)) ->  | T19: =IF(D19="","",MINUTE(D19)) ->  | U19: =IF(D19="","",TIME(HOUR(D19),MINUTE(D19),0)) ->  | V19: =IF(E19="","",HOUR(E19)) ->  | W19: =IF(E19="","",MINUTE(E19)) ->  | X19: =IF(E19="","",TIME(HOUR(E19),MINUTE(E19),0)) -> 
A20: =A19+1 -> 2015-12-17 | B20: =PROPER(TEXT(A20,"ddd")) -> To | F20: =IF(D20="","",(E20-D20)+(D20>E20)) ->  | P20: =IF(F20="","",IF(F20<>0,IF(C20<>"",IF(G20+H20=0,Satser!B$23,((G20+H20)*24)*(24/1440)+Satser!B$23),IF(G20+H20=0,"",((G20+H20)*24)*(24/1440))),"")) ->  | S20: =IF(D20="","",HOUR(D20)) ->  | T20: =IF(D20="","",MINUTE(D20)) ->  | U20: =IF(D20="","",TIME(HOUR(D20),MINUTE(D20),0)) ->  | V20: =IF(E20="","",HOUR(E20)) ->  | W20: =IF(E20="","",MINUTE(E20)) ->  | X20: =IF(E20="","",TIME(HOUR(E20),MINUTE(E20),0)) -> 
A21: 2015-12-18 | B21: Fr | F21: =IF(D21="","",(E21-D21)+(D21>E21)) ->  | P21: =IF(F21="","",IF(F21<>0,IF(C21<>"",IF(G21+H21=0,Satser!B$23,((G21+H21)*24)*(24/1440)+Satser!B$23),IF(G21+H21=0,"",((G21+H21)*24)*(24/1440))),"")) ->  | S21: =IF(D21="","",HOUR(D21)) ->  | T21: =IF(D21="","",MINUTE(D21)) ->  | U21: =IF(D21="","",TIME(HOUR(D21),MINUTE(D21),0)) ->  | V21: =IF(E21="","",HOUR(E21)) ->  | W21: =IF(E21="","",MINUTE(E21)) ->  | X21: =IF(E21="","",TIME(HOUR(E21),MINUTE(E21),0)) -> 
A22: 2015-12-19 | B22: Lø | F22: =IF(D22="","",(E22-D22)+(D22>E22)) ->  | N22: =IF(E22<D22,IF(E22>6/24,E22-6/24,""),"") ->  | P22: =IF(F22="","",IF(F22<>0,IF(C22<>"",IF(G22+H22=0,Satser!B$23,((G22+H22)*24)*(24/1440)+Satser!B$23),IF(G22+H22=0,"",((G22+H22)*24)*(24/1440))),"")) ->  | S22: =IF(D22="","",HOUR(D22)) ->  | T22: =IF(D22="","",MINUTE(D22)) ->  | U22: =IF(D22="","",TIME(HOUR(D22),MINUTE(D22),0)) ->  | V22: =IF(E22="","",HOUR(E22)) ->  | W22: =IF(E22="","",MINUTE(E22)) ->  | X22: =IF(E22="","",TIME(HOUR(E22),MINUTE(E22),0)) -> 
A23: 2015-12-20 | B23: Sø | F23: =IF(D23="","",(E23-D23)+(D23>E23)) ->  | J23: =IF(D23="","",(IF(E23-MAX(D23,(17/24))+(E23<D23)<0,0,E23-MAX(D23,(17/24))+(E23<D23)))-(IF((E23-MAX(D23,(23/24))+(E23<D23))<0,0,(E23-MAX(D23,(23/24))+(E23<D23))))) ->  | L23: =IF(F23="","",IF((E23-MAX(D23,(18/24))+(D23>E23))<0,0,(IF(E23<D23,IF(E23>2/24,2/24,E23),E23)-MAX(D23,(18/24)))+(D23>E23))+(2/24)-MIN(D23,(2/24))) ->  | N23: =IF(D23="","",IF((E23-MAX(D23,(6/24))+(D23>E23))<0,0,(IF(E23<D23,IF(E23>6/24,6/24,E23),E23)-MAX(D23,(6/24)))+(D23>E23))+(6/24)-MIN(E23,(6/24))) ->  | O23: =IF(E23<D23,IF(E23>6/24,E23-6/24,""),"") ->  | P23: =IF(F23="","",IF(F23<>0,IF(C23<>"",IF(G23+H23=0,Satser!B$23,((G23+H23)*24)*(24/1440)+Satser!B$23),IF(G23+H23=0,"",((G23+H23)*24)*(24/1440))),"")) ->  | S23: =IF(D23="","",HOUR(D23)) ->  | T23: =IF(D23="","",MINUTE(D23)) ->  | U23: =IF(D23="","",TIME(HOUR(D23),MINUTE(D23),0)) ->  | V23: =IF(E23="","",HOUR(E23)) ->  | W23: =IF(E23="","",MINUTE(E23)) ->  | X23: =IF(E23="","",TIME(HOUR(E23),MINUTE(E23),0)) -> 
A24: 2015-12-21 | B24: Ma | F24: =IF(D24="","",(E24-D24)+(D24>E24)) ->  | L24: =IF(F24="","",IF((E24-MAX(D24,(18/24))+(D24>E24))<0,0,(IF(E24<D24,IF(E24>2/24,2/24,E24),E24)-MAX(D24,(18/24)))+(D24>E24))+(2/24)-MIN(D24,(2/24))) ->  | N24: =IF(D24="","",IF(D24<6/24,IF(E24<6/24,6/24-D24-(6/24-E24),6/24-D24),"00:00")) ->  | O24: =IF(D24="","",IF((E24-MAX(D24,(6/24))+(D24>E24))<0,0,(IF(E24<D24,IF(E24>6/24,6/24,E24),E24)-MAX(D24,(6/24)))+(D24>E24))+(6/24)-MIN(E24,(6/24))) ->  | P24: =IF(F24="","",IF(F24<>0,IF(C24<>"",IF(G24+H24=0,Satser!B$23,((G24+H24)*24)*(24/1440)+Satser!B$23),IF(G24+H24=0,"",((G24+H24)*24)*(24/1440))),"")) ->  | S24: =IF(D24="","",HOUR(D24)) ->  | T24: =IF(D24="","",MINUTE(D24)) ->  | U24: =IF(D24="","",TIME(HOUR(D24),MINUTE(D24),0)) ->  | V24: =IF(E24="","",HOUR(E24)) ->  | W24: =IF(E24="","",MINUTE(E24)) ->  | X24: =IF(E24="","",TIME(HOUR(E24),MINUTE(E24),0)) -> 
A25: =A24+1 -> 2015-12-22 | B25: =PROPER(TEXT(A25,"ddd")) -> Ti | C25: =HelligdagsNavn(A25,0,0) ->  | F25: =IF(D25="","",(E25-D25)+(D25>E25)) ->  | J25: =IF(D25="","",(IF(E25-MAX(D25,(17/24))+(E25<D25)<0,0,E25-MAX(D25,(17/24))+(E25<D25)))-(IF((E25-MAX(D25,(23/24))+(E25<D25))<0,0,(E25-MAX(D25,(23/24))+(E25<D25))))) ->  | L25: =IF(F25="","",IF((E25-MAX(D25,(18/24))+(D25>E25))<0,0,(IF(E25<D25,IF(E25>2/24,2/24,E25),E25)-MAX(D25,(18/24)))+(D25>E25))+(2/24)-MIN(D25,(2/24))) ->  | O25: =IF(D25="","",IF(D25<6/24,6/24-D25,"")) ->  | P25: =IF(F25="","",IF(F25<>0,IF(C25<>"",IF(G25+H25=0,Satser!B$23,((G25+H25)*24)*(24/1440)+Satser!B$23),IF(G25+H25=0,"",((G25+H25)*24)*(24/1440))),"")) ->  | S25: =IF(D25="","",HOUR(D25)) ->  | T25: =IF(D25="","",MINUTE(D25)) ->  | U25: =IF(D25="","",TIME(HOUR(D25),MINUTE(D25),0)) ->  | V25: =IF(E25="","",HOUR(E25)) ->  | W25: =IF(E25="","",MINUTE(E25)) ->  | X25: =IF(E25="","",TIME(HOUR(E25),MINUTE(E25),0)) -> 
A26: =A25+1 -> 2015-12-23 | B26: =PROPER(TEXT(A26,"ddd")) -> On | C26: =HelligdagsNavn(A26,0,0) ->  | F26: =IF(D26="","",(E26-D26)+(D26>E26)) ->  | P26: =IF(F26="","",IF(F26<>0,IF(C26<>"",IF(G26+H26=0,Satser!B$23,((G26+H26)*24)*(24/1440)+Satser!B$23),IF(G26+H26=0,"",((G26+H26)*24)*(24/1440))),"")) ->  | S26: =IF(D26="","",HOUR(D26)) ->  | T26: =IF(D26="","",MINUTE(D26)) ->  | U26: =IF(D26="","",TIME(HOUR(D26),MINUTE(D26),0)) ->  | V26: =IF(E26="","",HOUR(E26)) ->  | W26: =IF(E26="","",MINUTE(E26)) ->  | X26: =IF(E26="","",TIME(HOUR(E26),MINUTE(E26),0)) -> 
A27: =A26+1 -> 2015-12-24 | B27: =PROPER(TEXT(A27,"ddd")) -> To | C27: Julaftensdag | F27: =IF(D27="","",(E27-D27)+(D27>E27)) ->  | P27: =IF(F27="","",IF(F27<>0,IF(C27<>"",IF(G27+H27=0,Satser!B$23,((G27+H27)*24)*(24/1440)+Satser!B$23),IF(G27+H27=0,"",((G27+H27)*24)*(24/1440))),"")) ->  | S27: =IF(D27="","",HOUR(D27)) ->  | T27: =IF(D27="","",MINUTE(D27)) ->  | U27: =IF(D27="","",TIME(HOUR(D27),MINUTE(D27),0)) ->  | V27: =IF(E27="","",HOUR(E27)) ->  | W27: =IF(E27="","",MINUTE(E27)) ->  | X27: =IF(E27="","",TIME(HOUR(E27),MINUTE(E27),0)) -> 
A28: 2015-12-25 | B28: Fr | C28: 1. Juledag | F28: =IF(D28="","",(E28-D28)+(D28>E28)) ->  | P28: =IF(F28="","",IF(F28<>0,IF(C28<>"",IF(G28+H28=0,Satser!B$23,((G28+H28)*24)*(24/1440)+Satser!B$23),IF(G28+H28=0,"",((G28+H28)*24)*(24/1440))),"")) ->  | S28: =IF(D28="","",HOUR(D28)) ->  | T28: =IF(D28="","",MINUTE(D28)) ->  | U28: =IF(D28="","",TIME(HOUR(D28),MINUTE(D28),0)) ->  | V28: =IF(E28="","",HOUR(E28)) ->  | W28: =IF(E28="","",MINUTE(E28)) ->  | X28: =IF(E28="","",TIME(HOUR(E28),MINUTE(E28),0)) -> 
A29: 2015-12-26 | B29: Lø | F29: =IF(D29="","",(E29-D29)+(D29>E29)) ->  | J29: =IF(D29="","",(IF(E29-MAX(D29,(17/24))+(E29<D29)<0,0,E29-MAX(D29,(17/24))+(E29<D29)))-(IF((E29-MAX(D29,(23/24))+(E29<D29))<0,0,(E29-MAX(D29,(23/24))+(E29<D29))))) ->  | L29: =IF(F29="","",IF((E29-MAX(D29,(18/24))+(D29>E29))<0,0,(IF(E29<D29,IF(E29>2/24,2/24,E29),E29)-MAX(D29,(18/24)))+(D29>E29))+(2/24)-MIN(D29,(2/24))) ->  | N29: =IF(E29<D29,IF(E29>6/24,E29-6/24,""),"") ->  | P29: =IF(F29="","",IF(F29<>0,IF(C29<>"",IF(G29+H29=0,Satser!B$23,((G29+H29)*24)*(24/1440)+Satser!B$23),IF(G29+H29=0,"",((G29+H29)*24)*(24/1440))),"")) ->  | S29: =IF(D29="","",HOUR(D29)) ->  | T29: =IF(D29="","",MINUTE(D29)) ->  | U29: =IF(D29="","",TIME(HOUR(D29),MINUTE(D29),0)) ->  | V29: =IF(E29="","",HOUR(E29)) ->  | W29: =IF(E29="","",MINUTE(E29)) ->  | X29: =IF(E29="","",TIME(HOUR(E29),MINUTE(E29),0)) -> 
A30: 2015-12-27 | B30: Sø | F30: =IF(D30="","",(E30-D30)+(D30>E30)) ->  | L30: =IF(F30="","",IF((E30-MAX(D30,(18/24))+(D30>E30))<0,0,(IF(E30<D30,IF(E30>2/24,2/24,E30),E30)-MAX(D30,(18/24)))+(D30>E30))+(2/24)-MIN(D30,(2/24))) ->  | N30: =IF(D30="","",IF((E30-MAX(D30,(6/24))+(D30>E30))<0,0,(IF(E30<D30,IF(E30>6/24,6/24,E30),E30)-MAX(D30,(6/24)))+(D30>E30))+(6/24)-MIN(E30,(6/24))) ->  | O30: =IF(E30<D30,IF(E30>6/24,E30-6/24,""),"") ->  | P30: =IF(F30="","",IF(F30<>0,IF(C30<>"",IF(G30+H30=0,Satser!B$23,((G30+H30)*24)*(24/1440)+Satser!B$23),IF(G30+H30=0,"",((G30+H30)*24)*(24/1440))),"")) ->  | S30: =IF(D30="","",HOUR(D30)) ->  | T30: =IF(D30="","",MINUTE(D30)) ->  | U30: =IF(D30="","",TIME(HOUR(D30),MINUTE(D30),0)) ->  | V30: =IF(E30="","",HOUR(E30)) ->  | W30: =IF(E30="","",MINUTE(E30)) ->  | X30: =IF(E30="","",TIME(HOUR(E30),MINUTE(E30),0)) -> 
A31: 2015-12-28 | B31: Ma | F31: =IF(D31="","",(E31-D31)+(D31>E31)) ->  | J31: =IF(D31="","",(IF(E31-MAX(D31,(17/24))+(E31<D31)<0,0,E31-MAX(D31,(17/24))+(E31<D31)))-(IF((E31-MAX(D31,(23/24))+(E31<D31))<0,0,(E31-MAX(D31,(23/24))+(E31<D31))))) ->  | L31: =IF(F31="","",IF((E31-MAX(D31,(18/24))+(D31>E31))<0,0,(IF(E31<D31,IF(E31>2/24,2/24,E31),E31)-MAX(D31,(18/24)))+(D31>E31))+(2/24)-MIN(D31,(2/24))) ->  | N31: =IF(D31="","",IF(D31<6/24,IF(E31<6/24,6/24-D31-(6/24-E31),6/24-D31),"00:00")) ->  | O31: =IF(D31="","",IF((E31-MAX(D31,(6/24))+(D31>E31))<0,0,(IF(E31<D31,IF(E31>6/24,6/24,E31),E31)-MAX(D31,(6/24)))+(D31>E31))+(6/24)-MIN(E31,(6/24))) ->  | P31: =IF(F31="","",IF(F31<>0,IF(C31<>"",IF(G31+H31=0,Satser!B$23,((G31+H31)*24)*(24/1440)+Satser!B$23),IF(G31+H31=0,"",((G31+H31)*24)*(24/1440))),"")) ->  | S31: =IF(D31="","",HOUR(D31)) ->  | T31: =IF(D31="","",MINUTE(D31)) ->  | U31: =IF(D31="","",TIME(HOUR(D31),MINUTE(D31),0)) ->  | V31: =IF(E31="","",HOUR(E31)) ->  | W31: =IF(E31="","",MINUTE(E31)) ->  | X31: =IF(E31="","",TIME(HOUR(E31),MINUTE(E31),0)) -> 
A32: =IF(MONTH(A31+1)>MONTH($A$4),"",A31+1) -> 2015-12-29 | B32: =PROPER(TEXT(A32,"ddd")) -> Ti | C32: =IFERROR(HelligdagsNavn(A32,0,0),"") ->  | F32: =IF(D32="","",(E32-D32)+(D32>E32)) ->  | J32: =IF(D32="","",(IF(E32-MAX(D32,(17/24))+(E32<D32)<0,0,E32-MAX(D32,(17/24))+(E32<D32)))-(IF((E32-MAX(D32,(23/24))+(E32<D32))<0,0,(E32-MAX(D32,(23/24))+(E32<D32))))) ->  | L32: =IF(F32="","",IF((E32-MAX(D32,(18/24))+(D32>E32))<0,0,(IF(E32<D32,IF(E32>2/24,2/24,E32),E32)-MAX(D32,(18/24)))+(D32>E32))+(2/24)-MIN(D32,(2/24))) ->  | N32: =IF(D32="","",IF(D32<6/24,IF(E32<6/24,6/24-D32-(6/24-E32),6/24-D32),"00:00")) ->  | O32: =IF(D32="","",IF((E32-MAX(D32,(6/24))+(D32>E32))<0,0,(IF(E32<D32,IF(E32>6/24,6/24,E32),E32)-MAX(D32,(6/24)))+(D32>E32))+(6/24)-MIN(E32,(6/24))) ->  | P32: =IF(F32="","",IF(F32<>0,IF(C32<>"",IF(G32+H32=0,Satser!B$23,((G32+H32)*24)*(24/1440)+Satser!B$23),IF(G32+H32=0,"",((G32+H32)*24)*(24/1440))),"")) -> 
A33: =IFERROR(IF(MONTH(A32+1)>MONTH($A$4),"",A32+1),"") -> 2015-12-30 | B33: On | C33: =IFERROR(HelligdagsNavn(A33,0,0),"") ->  | P33: =IF(F33="","",IF(F33<>0,IF(C33<>"",IF(G33+H33=0,Satser!B$23,((G33+H33)*24)*(24/1440)+Satser!B$23),IF(G33+H33=0,"",((G33+H33)*24)*(24/1440))),"")) -> 
A34: =IFERROR(IF(MONTH(A33+1)>MONTH($A$4),"",A33+1),"") -> 2015-12-31 | B34: To | C34: Nytårsaftensdag | P34: =IF(F34="","",IF(F34<>0,IF(C34<>"",IF(G34+H34=0,Satser!B$23,((G34+H34)*24)*(24/1440)+Satser!B$23),IF(G34+H34=0,"",((G34+H34)*24)*(24/1440))),"")) -> 
A35: Total timer | F35: =IF(SUM(F9:F31)<>"0",SUM(F4:F31),"") -> 1.895833333 | G35: =IF(SUM(G4:G31)<>"0",SUM(G4:G31),"") -> 0 | H35: =IF(SUM(H4:H31)<>"0",SUM(H4:H31),"") -> 0 | I35: =IF(SUM(I4:I31)<>"0",SUM(I4:I31),"") -> 0 | J35: =IF(SUM(J4:J31)<>"0",SUM(J4:J31),"") -> 0.9375 | L35: =IF(SUM(L4:L31)<>"0",SUM(L4:L31),"") -> 0.9583333333 | N35: =IF(SUM(N4:N31)<>"0",SUM(N4:N31),"") -> 0.2604166667 | O35: =IF(SUM(O4:O31)<>"0",SUM(O4:O31),"") -> 00:00:00 | P35: =SUM(P4:P31) -> 0 | Q35: =SUM(Q4:Q31) -> 0
A36: Timer 1/100 | F36: =IF(F35<>"",ROUND(F35*24,2),"") -> 45.5 | G36: =IF(G35<>"",ROUND(G35*24,2),"") -> 0 | H36: =IF(H35<>"",ROUND(H35*24,2),"") -> 0 | I36: 0 | J36: =IF(J35<>"",ROUND(J35*24,2),"") -> 22.5 | L36: =IF(L35<>"",ROUND(L35*24,2),"") -> 23 | N36: 6.25 | O36: 0 | P36: 0 | Q36: 0
A37: Satser | F37: =Satser!B7 -> 125.76 | G37: =Satser!B9 -> 59.81 | H37: =Satser!B12 -> 119.62 | I37: =Satser!C12 -> 0 | J37: 18.8 | L37: 21.81 | N37: 28.68 | O37: 67
F38: =IF(F35<>"",F36*F37,"") -> 5722.08 | G38: =IF(G35<>"",G36*G37,"") -> 0 | H38: =IF(G35<>"",G36*G37,"") -> 0 | I38: =IF(H35<>"",H36*H37,"") -> 0 | J38: =IF(J35<>"",J36*J37,"") -> 423 | L38: =IF(L35<>"",L36*L37,"") -> 501.63 | N38: 179.25 | O38: =IF(O35<>"",O35*O37,"") -> 0
A40: Lønart
A41: 3025 | F41: =F35 -> 1.895833333
A42: 3425 | F42: =G35 -> 0
A43: 3428 | F43: =H35 -> 0
A44: Timer | F44: =SUM(F41:F43) -> 1.895833333 | G44: =IF(F44<>"",ROUND(F44*24,2),"") -> 45.5
G45: =F37*G44 -> 5722.08

Sheet Tomt
A1: Løn | B1: 1 juni 2010 - 30 juni 2010 | Q1: Time beregning:
A2: Lønart | G2: 3025 | H2: 3425 | I2: 3426 | J2: 3600 | K2: 3602 | L2: 3605 | M2: 3610 | N2: 9091 | O2: 9092 | Q2: Betalt pause ved vagt over 5 timer | U2: 00:25:00 | V2: minutter | W2: 00:00:00 | X2: 06:00:00 | Y2: 18:00:00 | Z2: 14:00:00
A3: Dato | B3: Dag | D3: Vagt | E3: Start | F3: Slut | G3: Time SID | H3: Overtid 1-3 time | I3: Overtid 4 - time | J3: Forskudttid alle dage | K3: Nattillæg 00-06 | L3: Weekend tillæg | M3: Delt tjenste
A4: 2010-04-01 | B4: =PROPER(TEXT(A4,"ddd")) -> To | C4: =HelligdagsNavn(A4,0,0) -> Skærtorsdag | E4: 08:00:00 | F4: 20:00:00 | G4: =IF($D4="","",VLOOKUP($D4,Timeberegning!$A$4:$O$10,13)) ->  | J4: =IF(E4<>"",IF(WEEKDAY(A4,2)<>6,IF(E4>F4,(F4-MAX(E4,(18/24))+(E4>F4))-F4,IF(F4>Y$2,(F4-MAX(E4,(18/24))),"")),IF(E4>F4,(F4-MAX(E4,(14/24))+(E4>F4))-F4,IF(F4>Z$2,(F4-MAX(E4,(14/24))),""))),"") -> 02:00:00 | K4: =IF(G4<>"",IF(S4<X$2,(X$2-S4),IF(V4<X$2,(V4-W$2),"")),"") ->  | L4: =IF(G4<>0,IF(WEEKDAY(A4,2)=7,G4,""),"") ->  | M4: =IF($D4="","",IF(VLOOKUP($D4,Timeberegning!$A$4:$O$101,15)="","",VLOOKUP($D4,Timeberegning!$A$4:$O$101,15))) ->  | N4: =IF(SUM(H4:I4)=0,"",SUM(H4:I4)) ->  | Q4: =IF(E4="","",HOUR(E4)) -> 8 | R4: =IF(E4="","",MINUTE(E4)) -> 0 | S4: =IF(E4="","",TIME(HOUR(E4),MINUTE(E4),0)) -> 08:00:00 | T4: =IF(F4="","",HOUR(F4)) -> 20 | U4: =IF(F4="","",MINUTE(F4)) -> 0 | V4: =TIME(HOUR(F4),MINUTE(F4),0) -> 20:00:00
A5: 2010-04-02 | B5: =PROPER(TEXT(A5,"ddd")) -> Fr | C5: =HelligdagsNavn(A5,0,0) -> Langfredag | E5: 17:45:00 | F5: 1 | G5: =IF($D5="","",VLOOKUP($D5,Timeberegning!$A$4:$O$10,13)) ->  | J5: =IF(E5<>"",IF(WEEKDAY(A5,2)<>6,IF(E5>F5,(F5-MAX(E5,(18/24))+(E5>F5))-F5,IF(F5>Y$2,(F5-MAX(E5,(18/24))),"")),IF(E5>F5,(F5-MAX(E5,(14/24))+(E5>F5))-F5,IF(F5>Z$2,(F5-MAX(E5,(14/24))),""))),"") -> 06:00:00 | L5: =IF(G5<>0,IF(WEEKDAY(A5,2)=7,G5,""),"") ->  | M5: =IF($D5="","",IF(VLOOKUP($D5,Timeberegning!$A$4:$O$101,15)="","",VLOOKUP($D5,Timeberegning!$A$4:$O$101,15))) ->  | N5: =IF(SUM(H5:I5)=0,"",SUM(H5:I5)) ->  | Q5: 17 | R5: 45 | S5: 17:45:00 | T5: 0 | U5: 0 | V5: =TIME(HOUR(F5),MINUTE(F5),0) -> 00:00:00
A6: 2010-04-03 | B6: =PROPER(TEXT(A6,"ddd")) -> Lø | E6: =IF($D6="","",IF(VLOOKUP($D6,Timeberegning!A$4:B$153,2)=0,"",VLOOKUP($D6,Timeberegning!A$4:B$153,2))) ->  | F6: =IF($D6="","",IF(VLOOKUP($D6,Timeberegning!A$4:C$153,3)="","",VLOOKUP($D6,Timeberegning!A$4:C$153,3))) ->  | G6: =IF($D6="","",VLOOKUP($D6,Timeberegning!$A$4:$O$10,13)) ->  | J6: =IF(E6<>"",IF(WEEKDAY(A6,2)<>6,IF(E6>F6,(F6-MAX(E6,(18/24))+(E6>F6))-F6,IF(F6>Y$2,(F6-MAX(E6,(18/24))),"")),IF(E6>F6,(F6-MAX(E6,(14/24))+(E6>F6))-F6,IF(F6>Z$2,(F6-MAX(E6,(14/24))),""))),"") ->  | M6: =IF($D6="","",IF(VLOOKUP($D6,Timeberegning!$A$4:$O$101,15)="","",VLOOKUP($D6,Timeberegning!$A$4:$O$101,15))) ->  | V6: =TIME(HOUR(F6),MINUTE(F6),0) -> 
A7: 2010-04-04 | B7: Sø | C7: Påskedag | E7: =IF($D7="","",IF(VLOOKUP($D7,Timeberegning!A$4:B$153,2)=0,"",VLOOKUP($D7,Timeberegning!A$4:B$153,2))) ->  | F7: =IF($D7="","",IF(VLOOKUP($D7,Timeberegning!A$4:C$153,3)="","",VLOOKUP($D7,Timeberegning!A$4:C$153,3))) ->  | G7: =IF($D7="","",VLOOKUP($D7,Timeberegning!$A$4:$O$153,13)) ->  | M7: =IF($D7="","",IF(VLOOKUP($D7,Timeberegning!$A$4:$O$101,15)="","",VLOOKUP($D7,Timeberegning!$A$4:$O$101,15))) ->  | O7: =IF($D7="","",IF(VLOOKUP($D7,Timeberegning!$A$4:$P$101,16)="","",VLOOKUP($D7,Timeberegning!$A$4:$P$101,16))) ->  | V7: =TIME(HOUR(F7),MINUTE(F7),0) -> 
A8: 2010-04-05 | B8: Ma | C8: 2. Påskedag | E8: =IF($D8="","",IF(VLOOKUP($D8,Timeberegning!A$4:B$153,2)=0,"",VLOOKUP($D8,Timeberegning!A$4:B$153,2))) ->  | F8: =IF($D8="","",IF(VLOOKUP($D8,Timeberegning!A$4:C$153,3)="","",VLOOKUP($D8,Timeberegning!A$4:C$153,3))) ->  | G8: =IF($D8="","",VLOOKUP($D8,Timeberegning!$A$4:$O$153,13)) ->  | M8: =IF($D8="","",IF(VLOOKUP($D8,Timeberegning!$A$4:$O$101,15)="","",VLOOKUP($D8,Timeberegning!$A$4:$O$101,15))) ->  | O8: =IF($D8="","",IF(VLOOKUP($D8,Timeberegning!$A$4:$P$101,16)="","",VLOOKUP($D8,Timeberegning!$A$4:$P$101,16))) ->  | V8: =TIME(HOUR(F8),MINUTE(F8),0) -> 
A9: 2010-04-06 | B9: Ti | E9: =IF($D9="","",IF(VLOOKUP($D9,Timeberegning!A$4:B$153,2)=0,"",VLOOKUP($D9,Timeberegning!A$4:B$153,2))) ->  | F9: =IF($D9="","",IF(VLOOKUP($D9,Timeberegning!A$4:C$153,3)="","",VLOOKUP($D9,Timeberegning!A$4:C$153,3))) ->  | G9: =IF($D9="","",VLOOKUP($D9,Timeberegning!$A$4:$O$153,13)) ->  | L9: =IF(G9<>0,IF(WEEKDAY(A9,2)=7,G9,""),"") ->  | M9: =IF($D9="","",IF(VLOOKUP($D9,Timeberegning!$A$4:$O$101,15)="","",VLOOKUP($D9,Timeberegning!$A$4:$O$101,15))) ->  | O9: =IF($D9="","",IF(VLOOKUP($D9,Timeberegning!$A$4:$P$101,16)="","",VLOOKUP($D9,Timeberegning!$A$4:$P$101,16))) ->  | V9: =IF(F9="","",TIME(HOUR(F9),MINUTE(F9),0)) -> 
A10: 2010-04-07 | B10: On | E10: =IF($D10="","",IF(VLOOKUP($D10,Timeberegning!A$4:B$153,2)=0,"",VLOOKUP($D10,Timeberegning!A$4:B$153,2))) ->  | F10: =IF($D10="","",IF(VLOOKUP($D10,Timeberegning!A$4:C$153,3)="","",VLOOKUP($D10,Timeberegning!A$4:C$153,3))) ->  | G10: =IF($D10="","",IF(VLOOKUP($D10,Timeberegning!$A$4:$O$153,13)="","",VLOOKUP($D10,Timeberegning!$A$4:$O$153,13))) ->  | L10: =IF(G10<>0,IF(WEEKDAY(A10,2)=7,G10,""),"") ->  | M10: =IF($D10="","",IF(VLOOKUP($D10,Timeberegning!$A$4:$O$101,15)="","",VLOOKUP($D10,Timeberegning!$A$4:$O$101,15))) ->  | O10: =IF($D10="","",IF(VLOOKUP($D10,Timeberegning!$A$4:$P$101,16)="","",VLOOKUP($D10,Timeberegning!$A$4:$P$101,16))) -> 
A11: 2010-04-08 | B11: To | E11: =IF($D11="","",IF(VLOOKUP($D11,Timeberegning!A$4:B$153,2)=0,"",VLOOKUP($D11,Timeberegning!A$4:B$153,2))) ->  | F11: =IF($D11="","",IF(VLOOKUP($D11,Timeberegning!A$4:C$153,3)="","",VLOOKUP($D11,Timeberegning!A$4:C$153,3))) ->  | G11: =IF($D11="","",IF(VLOOKUP($D11,Timeberegning!$A$4:$O$153,13)="","",VLOOKUP($D11,Timeberegning!$A$4:$O$153,13))) ->  | L11: =IF(G11<>0,IF(WEEKDAY(A11,2)=7,G11,""),"") ->  | M11: =IF($D11="","",IF(VLOOKUP($D11,Timeberegning!$A$4:$O$101,15)="","",VLOOKUP($D11,Timeberegning!$A$4:$O$101,15))) ->  | O11: =IF($D11="","",IF(VLOOKUP($D11,Timeberegning!$A$4:$P$101,16)="","",VLOOKUP($D11,Timeberegning!$A$4:$P$101,16))) -> 
A12: 2010-04-09 | B12: Fr | E12: =IF($D12="","",IF(VLOOKUP($D12,Timeberegning!A$4:B$153,2)=0,"",VLOOKUP($D12,Timeberegning!A$4:B$153,2))) ->  | F12: =IF($D12="","",IF(VLOOKUP($D12,Timeberegning!A$4:C$153,3)="","",VLOOKUP($D12,Timeberegning!A$4:C$153,3))) ->  | G12: =IF($D12="","",IF(VLOOKUP($D12,Timeberegning!$A$4:$O$153,13)="","",VLOOKUP($D12,Timeberegning!$A$4:$O$153,13))) ->  | M12: =IF($D12="","",IF(VLOOKUP($D12,Timeberegning!$A$4:$O$101,15)="","",VLOOKUP($D12,Timeberegning!$A$4:$O$101,15))) ->  | O12: =IF($D12="","",IF(VLOOKUP($D12,Timeberegning!$A$4:$P$101,16)="","",VLOOKUP($D12,Timeberegning!$A$4:$P$101,16))) -> 
A13: 2010-04-10 | B13: Lø | E13: =IF($D13="","",IF(VLOOKUP($D13,Timeberegning!A$4:B$153,2)=0,"",VLOOKUP($D13,Timeberegning!A$4:B$153,2))) ->  | F13: =IF($D13="","",IF(VLOOKUP($D13,Timeberegning!A$4:C$153,3)="","",VLOOKUP($D13,Timeberegning!A$4:C$153,3))) ->  | G13: =IF($D13="","",IF(VLOOKUP($D13,Timeberegning!$A$4:$O$153,13)="","",VLOOKUP($D13,Timeberegning!$A$4:$O$153,13))) ->  | M13: =IF($D13="","",IF(VLOOKUP($D13,Timeberegning!$A$4:$O$101,15)="","",VLOOKUP($D13,Timeberegning!$A$4:$O$101,15))) ->  | O13: =IF($D13="","",IF(VLOOKUP($D13,Timeberegning!$A$4:$P$101,16)="","",VLOOKUP($D13,Timeberegning!$A$4:$P$101,16))) -> 
A14: 2010-04-11 | B14: Sø | E14: =IF($D14="","",IF(VLOOKUP($D14,Timeberegning!A$4:B$153,2)=0,"",VLOOKUP($D14,Timeberegning!A$4:B$153,2))) ->  | F14: =IF($D14="","",IF(VLOOKUP($D14,Timeberegning!A$4:C$153,3)="","",VLOOKUP($D14,Timeberegning!A$4:C$153,3))) ->  | G14: =IF($D14="","",IF(VLOOKUP($D14,Timeberegning!$A$4:$O$153,13)="","",VLOOKUP($D14,Timeberegning!$A$4:$O$153,13))) ->  | M14: =IF($D14="","",IF(VLOOKUP($D14,Timeberegning!$A$4:$O$101,15)="","",VLOOKUP($D14,Timeberegning!$A$4:$O$101,15))) ->  | O14: =IF($D14="","",IF(VLOOKUP($D14,Timeberegning!$A$4:$P$101,16)="","",VLOOKUP($D14,Timeberegning!$A$4:$P$101,16))) -> 
A15: 2010-04-12 | B15: Ma | E15: =IF($D15="","",IF(VLOOKUP($D15,Timeberegning!A$4:B$153,2)=0,"",VLOOKUP($D15,Timeberegning!A$4:B$153,2))) ->  | F15: =IF($D15="","",IF(VLOOKUP($D15,Timeberegning!A$4:C$153,3)="","",VLOOKUP($D15,Timeberegning!A$4:C$153,3))) ->  | G15: =IF($D15="","",IF(VLOOKUP($D15,Timeberegning!$A$4:$O$153,13)="","",VLOOKUP($D15,Timeberegning!$A$4:$O$153,13))) ->  | M15: =IF($D15="","",IF(VLOOKUP($D15,Timeberegning!$A$4:$O$101,15)="","",VLOOKUP($D15,Timeberegning!$A$4:$O$101,15))) ->  | O15: =IF($D15="","",IF(VLOOKUP($D15,Timeberegning!$A$4:$P$101,16)="","",VLOOKUP($D15,Timeberegning!$A$4:$P$101,16))) -> 
A16: 2010-04-13 | B16: Ti | E16: =IF($D16="","",IF(VLOOKUP($D16,Timeberegning!A$4:B$153,2)=0,"",VLOOKUP($D16,Timeberegning!A$4:B$153,2))) ->  | F16: =IF($D16="","",IF(VLOOKUP($D16,Timeberegning!A$4:C$153,3)="","",VLOOKUP($D16,Timeberegning!A$4:C$153,3))) ->  | G16: =IF($D16="","",IF(VLOOKUP($D16,Timeberegning!$A$4:$O$153,13)="","",VLOOKUP($D16,Timeberegning!$A$4:$O$153,13))) ->  | M16: =IF($D16="","",IF(VLOOKUP($D16,Timeberegning!$A$4:$O$101,15)="","",VLOOKUP($D16,Timeberegning!$A$4:$O$101,15))) ->  | O16: =IF($D16="","",IF(VLOOKUP($D16,Timeberegning!$A$4:$P$101,16)="","",VLOOKUP($D16,Timeberegning!$A$4:$P$101,16))) -> 
A17: 2010-04-14 | B17: On | E17: =IF($D17="","",IF(VLOOKUP($D17,Timeberegning!A$4:B$153,2)=0,"",VLOOKUP($D17,Timeberegning!A$4:B$153,2))) ->  | F17: =IF($D17="","",IF(VLOOKUP($D17,Timeberegning!A$4:C$153,3)="","",VLOOKUP($D17,Timeberegning!A$4:C$153,3))) ->  | G17: =IF($D17="","",IF(VLOOKUP($D17,Timeberegning!$A$4:$O$153,13)="","",VLOOKUP($D17,Timeberegning!$A$4:$O$153,13))) ->  | M17: =IF($D17="","",IF(VLOOKUP($D17,Timeberegning!$A$4:$O$101,15)="","",VLOOKUP($D17,Timeberegning!$A$4:$O$101,15))) ->  | O17: =IF($D17="","",IF(VLOOKUP($D17,Timeberegning!$A$4:$P$101,16)="","",VLOOKUP($D17,Timeberegning!$A$4:$P$101,16))) -> 
A18: 2010-04-15 | B18: To | E18: =IF($D18="","",IF(VLOOKUP($D18,Timeberegning!A$4:B$153,2)=0,"",VLOOKUP($D18,Timeberegning!A$4:B$153,2))) ->  | F18: =IF($D18="","",IF(VLOOKUP($D18,Timeberegning!A$4:C$153,3)="","",VLOOKUP($D18,Timeberegning!A$4:C$153,3))) ->  | G18: =IF($D18="","",IF(VLOOKUP($D18,Timeberegning!$A$4:$O$153,13)="","",VLOOKUP($D18,Timeberegning!$A$4:$O$153,13))) ->  | M18: =IF($D18="","",IF(VLOOKUP($D18,Timeberegning!$A$4:$O$101,15)="","",VLOOKUP($D18,Timeberegning!$A$4:$O$101,15))) ->  | O18: =IF($D18="","",IF(VLOOKUP($D18,Timeberegning!$A$4:$P$101,16)="","",VLOOKUP($D18,Timeberegning!$A$4:$P$101,16))) -> 
A19: 2010-04-16 | B19: Fr | E19: =IF($D19="","",IF(VLOOKUP($D19,Timeberegning!A$4:B$153,2)=0,"",VLOOKUP($D19,Timeberegning!A$4:B$153,2))) ->  | F19: =IF($D19="","",IF(VLOOKUP($D19,Timeberegning!A$4:C$153,3)="","",VLOOKUP($D19,Timeberegning!A$4:C$153,3))) ->  | G19: =IF($D19="","",IF(VLOOKUP($D19,Timeberegning!$A$4:$O$153,13)="","",VLOOKUP($D19,Timeberegning!$A$4:$O$153,13))) ->  | M19: =IF($D19="","",IF(VLOOKUP($D19,Timeberegning!$A$4:$O$101,15)="","",VLOOKUP($D19,Timeberegning!$A$4:$O$101,15))) ->  | O19: =IF($D19="","",IF(VLOOKUP($D19,Timeberegning!$A$4:$P$101,16)="","",VLOOKUP($D19,Timeberegning!$A$4:$P$101,16))) -> 
A20: 2010-04-17 | B20: Lø | E20: =IF($D20="","",IF(VLOOKUP($D20,Timeberegning!A$4:B$153,2)=0,"",VLOOKUP($D20,Timeberegning!A$4:B$153,2))) ->  | F20: =IF($D20="","",IF(VLOOKUP($D20,Timeberegning!A$4:C$153,3)="","",VLOOKUP($D20,Timeberegning!A$4:C$153,3))) ->  | G20: =IF($D20="","",IF(VLOOKUP($D20,Timeberegning!$A$4:$O$153,13)="","",VLOOKUP($D20,Timeberegning!$A$4:$O$153,13))) ->  | M20: =IF($D20="","",IF(VLOOKUP($D20,Timeberegning!$A$4:$O$101,15)="","",VLOOKUP($D20,Timeberegning!$A$4:$O$101,15))) ->  | O20: =IF($D20="","",IF(VLOOKUP($D20,Timeberegning!$A$4:$P$101,16)="","",VLOOKUP($D20,Timeberegning!$A$4:$P$101,16))) -> 
A21: 2010-04-18 | B21: Sø | E21: =IF($D21="","",IF(VLOOKUP($D21,Timeberegning!A$4:B$153,2)=0,"",VLOOKUP($D21,Timeberegning!A$4:B$153,2))) ->  | F21: =IF($D21="","",IF(VLOOKUP($D21,Timeberegning!A$4:C$153,3)="","",VLOOKUP($D21,Timeberegning!A$4:C$153,3))) ->  | G21: =IF($D21="","",IF(VLOOKUP($D21,Timeberegning!$A$4:$O$153,13)="","",VLOOKUP($D21,Timeberegning!$A$4:$O$153,13))) ->  | M21: =IF($D21="","",IF(VLOOKUP($D21,Timeberegning!$A$4:$O$101,15)="","",VLOOKUP($D21,Timeberegning!$A$4:$O$101,15))) ->  | O21: =IF($D21="","",IF(VLOOKUP($D21,Timeberegning!$A$4:$P$101,16)="","",VLOOKUP($D21,Timeberegning!$A$4:$P$101,16))) -> 
A22: 2010-04-19 | B22: Ma | E22: =IF($D22="","",IF(VLOOKUP($D22,Timeberegning!A$4:B$153,2)=0,"",VLOOKUP($D22,Timeberegning!A$4:B$153,2))) ->  | F22: =IF($D22="","",IF(VLOOKUP($D22,Timeberegning!A$4:C$153,3)="","",VLOOKUP($D22,Timeberegning!A$4:C$153,3))) ->  | G22: =IF($D22="","",IF(VLOOKUP($D22,Timeberegning!$A$4:$O$153,13)="","",VLOOKUP($D22,Timeberegning!$A$4:$O$153,13))) ->  | M22: =IF($D22="","",IF(VLOOKUP($D22,Timeberegning!$A$4:$O$101,15)="","",VLOOKUP($D22,Timeberegning!$A$4:$O$101,15))) ->  | O22: =IF($D22="","",IF(VLOOKUP($D22,Timeberegning!$A$4:$P$101,16)="","",VLOOKUP($D22,Timeberegning!$A$4:$P$101,16))) -> 
A23: 2010-04-20 | B23: Ti | E23: =IF($D23="","",IF(VLOOKUP($D23,Timeberegning!A$4:B$153,2)=0,"",VLOOKUP($D23,Timeberegning!A$4:B$153,2))) ->  | F23: =IF($D23="","",IF(VLOOKUP($D23,Timeberegning!A$4:C$153,3)="","",VLOOKUP($D23,Timeberegning!A$4:C$153,3))) ->  | G23: =IF($D23="","",IF(VLOOKUP($D23,Timeberegning!$A$4:$O$153,13)="","",VLOOKUP($D23,Timeberegning!$A$4:$O$153,13))) ->  | M23: =IF($D23="","",IF(VLOOKUP($D23,Timeberegning!$A$4:$O$101,15)="","",VLOOKUP($D23,Timeberegning!$A$4:$O$101,15))) ->  | O23: =IF($D23="","",IF(VLOOKUP($D23,Timeberegning!$A$4:$P$101,16)="","",VLOOKUP($D23,Timeberegning!$A$4:$P$101,16))) -> 
A24: 2010-04-21 | B24: On | E24: =IF($D24="","",IF(VLOOKUP($D24,Timeberegning!A$4:B$153,2)=0,"",VLOOKUP($D24,Timeberegning!A$4:B$153,2))) ->  | F24: =IF($D24="","",IF(VLOOKUP($D24,Timeberegning!A$4:C$153,3)="","",VLOOKUP($D24,Timeberegning!A$4:C$153,3))) ->  | G24: =IF($D24="","",IF(VLOOKUP($D24,Timeberegning!$A$4:$O$153,13)="","",VLOOKUP($D24,Timeberegning!$A$4:$O$153,13))) ->  | M24: =IF($D24="","",IF(VLOOKUP($D24,Timeberegning!$A$4:$O$101,15)="","",VLOOKUP($D24,Timeberegning!$A$4:$O$101,15))) ->  | O24: =IF($D24="","",IF(VLOOKUP($D24,Timeberegning!$A$4:$P$101,16)="","",VLOOKUP($D24,Timeberegning!$A$4:$P$101,16))) -> 
A25: 2010-04-22 | B25: To | E25: =IF($D25="","",IF(VLOOKUP($D25,Timeberegning!A$4:B$153,2)=0,"",VLOOKUP($D25,Timeberegning!A$4:B$153,2))) ->  | F25: =IF($D25="","",IF(VLOOKUP($D25,Timeberegning!A$4:C$153,3)="","",VLOOKUP($D25,Timeberegning!A$4:C$153,3))) ->  | G25: =IF($D25="","",IF(VLOOKUP($D25,Timeberegning!$A$4:$O$153,13)="","",VLOOKUP($D25,Timeberegning!$A$4:$O$153,13))) ->  | M25: =IF($D25="","",IF(VLOOKUP($D25,Timeberegning!$A$4:$O$101,15)="","",VLOOKUP($D25,Timeberegning!$A$4:$O$101,15))) ->  | O25: =IF($D25="","",IF(VLOOKUP($D25,Timeberegning!$A$4:$P$101,16)="","",VLOOKUP($D25,Timeberegning!$A$4:$P$101,16))) -> 
A26: 2010-04-23 | B26: Fr | E26: =IF($D26="","",IF(VLOOKUP($D26,Timeberegning!A$4:B$153,2)=0,"",VLOOKUP($D26,Timeberegning!A$4:B$153,2))) ->  | F26: =IF($D26="","",IF(VLOOKUP($D26,Timeberegning!A$4:C$153,3)="","",VLOOKUP($D26,Timeberegning!A$4:C$153,3))) ->  | G26: =IF($D26="","",IF(VLOOKUP($D26,Timeberegning!$A$4:$O$153,13)="","",VLOOKUP($D26,Timeberegning!$A$4:$O$153,13))) ->  | M26: =IF($D26="","",IF(VLOOKUP($D26,Timeberegning!$A$4:$O$101,15)="","",VLOOKUP($D26,Timeberegning!$A$4:$O$101,15))) ->  | O26: =IF($D26="","",IF(VLOOKUP($D26,Timeberegning!$A$4:$P$101,16)="","",VLOOKUP($D26,Timeberegning!$A$4:$P$101,16))) -> 
A27: 2010-04-24 | B27: Lø | E27: =IF($D27="","",IF(VLOOKUP($D27,Timeberegning!A$4:B$153,2)=0,"",VLOOKUP($D27,Timeberegning!A$4:B$153,2))) ->  | F27: =IF($D27="","",IF(VLOOKUP($D27,Timeberegning!A$4:C$153,3)="","",VLOOKUP($D27,Timeberegning!A$4:C$153,3))) ->  | G27: =IF($D27="","",IF(VLOOKUP($D27,Timeberegning!$A$4:$O$153,13)="","",VLOOKUP($D27,Timeberegning!$A$4:$O$153,13))) ->  | M27: =IF($D27="","",IF(VLOOKUP($D27,Timeberegning!$A$4:$O$101,15)="","",VLOOKUP($D27,Timeberegning!$A$4:$O$101,15))) ->  | O27: =IF($D27="","",IF(VLOOKUP($D27,Timeberegning!$A$4:$P$101,16)="","",VLOOKUP($D27,Timeberegning!$A$4:$P$101,16))) -> 
A28: 2010-04-25 | B28: Sø | E28: =IF($D28="","",IF(VLOOKUP($D28,Timeberegning!A$4:B$153,2)=0,"",VLOOKUP($D28,Timeberegning!A$4:B$153,2))) ->  | F28: =IF($D28="","",IF(VLOOKUP($D28,Timeberegning!A$4:C$153,3)="","",VLOOKUP($D28,Timeberegning!A$4:C$153,3))) ->  | G28: =IF($D28="","",IF(VLOOKUP($D28,Timeberegning!$A$4:$O$153,13)="","",VLOOKUP($D28,Timeberegning!$A$4:$O$153,13))) ->  | M28: =IF($D28="","",IF(VLOOKUP($D28,Timeberegning!$A$4:$O$101,15)="","",VLOOKUP($D28,Timeberegning!$A$4:$O$101,15))) ->  | O28: =IF($D28="","",IF(VLOOKUP($D28,Timeberegning!$A$4:$P$101,16)="","",VLOOKUP($D28,Timeberegning!$A$4:$P$101,16))) -> 
A29: 2010-04-26 | B29: Ma | E29: =IF($D29="","",IF(VLOOKUP($D29,Timeberegning!A$4:B$153,2)=0,"",VLOOKUP($D29,Timeberegning!A$4:B$153,2))) ->  | F29: =IF($D29="","",IF(VLOOKUP($D29,Timeberegning!A$4:C$153,3)="","",VLOOKUP($D29,Timeberegning!A$4:C$153,3))) ->  | G29: =IF($D29="","",IF(VLOOKUP($D29,Timeberegning!$A$4:$O$153,13)="","",VLOOKUP($D29,Timeberegning!$A$4:$O$153,13))) ->  | M29: =IF($D29="","",IF(VLOOKUP($D29,Timeberegning!$A$4:$O$101,15)="","",VLOOKUP($D29,Timeberegning!$A$4:$O$101,15))) ->  | O29: =IF($D29="","",IF(VLOOKUP($D29,Timeberegning!$A$4:$P$101,16)="","",VLOOKUP($D29,Timeberegning!$A$4:$P$101,16))) -> 
A30: 2010-04-27 | B30: Ti | E30: =IF($D30="","",IF(VLOOKUP($D30,Timeberegning!A$4:B$153,2)=0,"",VLOOKUP($D30,Timeberegning!A$4:B$153,2))) ->  | F30: =IF($D30="","",IF(VLOOKUP($D30,Timeberegning!A$4:C$153,3)="","",VLOOKUP($D30,Timeberegning!A$4:C$153,3))) ->  | G30: =IF($D30="","",IF(VLOOKUP($D30,Timeberegning!$A$4:$O$153,13)="","",VLOOKUP($D30,Timeberegning!$A$4:$O$153,13))) ->  | M30: =IF($D30="","",IF(VLOOKUP($D30,Timeberegning!$A$4:$O$101,15)="","",VLOOKUP($D30,Timeberegning!$A$4:$O$101,15))) ->  | O30: =IF($D30="","",IF(VLOOKUP($D30,Timeberegning!$A$4:$P$101,16)="","",VLOOKUP($D30,Timeberegning!$A$4:$P$101,16))) -> 
A31: 2010-04-28 | B31: On | E31: =IF($D31="","",IF(VLOOKUP($D31,Timeberegning!A$4:B$153,2)=0,"",VLOOKUP($D31,Timeberegning!A$4:B$153,2))) ->  | F31: =IF($D31="","",IF(VLOOKUP($D31,Timeberegning!A$4:C$153,3)="","",VLOOKUP($D31,Timeberegning!A$4:C$153,3))) ->  | G31: =IF($D31="","",IF(VLOOKUP($D31,Timeberegning!$A$4:$O$153,13)="","",VLOOKUP($D31,Timeberegning!$A$4:$O$153,13))) ->  | M31: =IF($D31="","",IF(VLOOKUP($D31,Timeberegning!$A$4:$O$101,15)="","",VLOOKUP($D31,Timeberegning!$A$4:$O$101,15))) ->  | O31: =IF($D31="","",IF(VLOOKUP($D31,Timeberegning!$A$4:$P$101,16)="","",VLOOKUP($D31,Timeberegning!$A$4:$P$101,16))) -> 
A32: 2010-04-29 | B32: =IF(A32="","",PROPER(TEXT(A32,"ddd"))) -> To | E32: =IF($D32="","",IF(VLOOKUP($D32,Timeberegning!A$4:B$153,2)=0,"",VLOOKUP($D32,Timeberegning!A$4:B$153,2))) ->  | F32: =IF($D32="","",IF(VLOOKUP($D32,Timeberegning!A$4:C$153,3)="","",VLOOKUP($D32,Timeberegning!A$4:C$153,3))) ->  | G32: =IF($D32="","",IF(VLOOKUP($D32,Timeberegning!$A$4:$O$153,13)="","",VLOOKUP($D32,Timeberegning!$A$4:$O$153,13))) ->  | M32: =IF($D32="","",IF(VLOOKUP($D32,Timeberegning!$A$4:$O$101,15)="","",VLOOKUP($D32,Timeberegning!$A$4:$O$101,15))) ->  | O32: =IF($D32="","",IF(VLOOKUP($D32,Timeberegning!$A$4:$P$101,16)="","",VLOOKUP($D32,Timeberegning!$A$4:$P$101,16))) -> 
A33: 2010-04-30 | B33: =IF(A33="","",PROPER(TEXT(A33,"ddd"))) -> Fr | C33: Store Bededag | E33: =IF($D33="","",IF(VLOOKUP($D33,Timeberegning!A$4:B$153,2)=0,"",VLOOKUP($D33,Timeberegning!A$4:B$153,2))) ->  | F33: =IF($D33="","",IF(VLOOKUP($D33,Timeberegning!A$4:C$153,3)="","",VLOOKUP($D33,Timeberegning!A$4:C$153,3))) ->  | G33: =IF($D33="","",IF(VLOOKUP($D33,Timeberegning!$A$4:$O$153,13)="","",VLOOKUP($D33,Timeberegning!$A$4:$O$153,13))) ->  | M33: =IF($D33="","",IF(VLOOKUP($D33,Timeberegning!$A$4:$O$101,15)="","",VLOOKUP($D33,Timeberegning!$A$4:$O$101,15))) ->  | O33: =IF($D33="","",IF(VLOOKUP($D33,Timeberegning!$A$4:$P$101,16)="","",VLOOKUP($D33,Timeberegning!$A$4:$P$101,16))) -> 
E34: =IF($D34="","",IF(VLOOKUP($D34,Timeberegning!A$4:B$153,2)=0,"",VLOOKUP($D34,Timeberegning!A$4:B$153,2))) ->  | F34: =IF($D34="","",IF(VLOOKUP($D34,Timeberegning!A$4:C$153,3)="","",VLOOKUP($D34,Timeberegning!A$4:C$153,3))) ->  | G34: =IF($D34="","",IF(VLOOKUP($D34,Timeberegning!$A$4:$O$153,13)="","",VLOOKUP($D34,Timeberegning!$A$4:$O$153,13))) ->  | M34: =IF($D34="","",IF(VLOOKUP($D34,Timeberegning!$A$4:$O$101,15)="","",VLOOKUP($D34,Timeberegning!$A$4:$O$101,15))) ->  | O34: =IF($D34="","",IF(VLOOKUP($D34,Timeberegning!$A$4:$P$101,16)="","",VLOOKUP($D34,Timeberegning!$A$4:$P$101,16))) -> 
A35: Total timer | G35: =IF(SUM(G9:G34)<>"0",SUM(G4:G34),"") -> 0 | H35: =IF(SUM(H4:H34)<>"0",SUM(H4:H34),"") -> 0 | I35: 0 | J35: 0.3333333333 | K35: 0 | L35: 0 | M35: 0 | N35: =SUM(N4:N34) -> 0 | O35: =SUM(O4:O34) -> 0
A36: Timer 1/100 | G36: =IF(G35<>"",ROUND(G35*24,2),"") -> 0 | H36: =IF(H35<>"",ROUND(H35*24,2),"") -> 0 | I36: 0 | J36: 8 | K36: 0 | L36: 0 | N36: 0 | O36: 0
A37: Satser | G37: =Satser!B7 -> 125.76 | H37: =Satser!B9 -> 59.81 | I37: =Satser!B12 -> 119.62 | J37: 18.8 | K37: 21.81 | L37: 28.68 | M37: 67
G38: =IF(G35<>"",G36*G37,"") -> 0 | H38: =IF(H35<>"",H36*H37,"") -> 0 | I38: 0 | J38: 150.4 | K38: 0 | L38: 0 | M38: =IF(M35<>"",M35*M37,"") -> 0
A40: Lønart
A41: 3025 | G41: =G35 -> 0
A42: 3425 | G42: =H35 -> 0
A43: 3426 | G43: =I35 -> 0
A44: Timer | G44: =SUM(G41:G43) -> 0 | H44: =IF(G44<>"",ROUND(G44*24,2),"") -> 0
H45: =G37*H44 -> 0

Sheet Satser
A3: Timeløn | B3: 119.62
A4: specielt tillæg | B4: 1.19
A5: Chauffør tillæg | B5: 4.95
A7: Samlet timeløn | B7: =SUM(B3:B5) -> 125.76
A9: overtidstillæg 50% | B9: 59.81
A10: pr. time | B10: =B7+B9 -> 185.57
A12: overtidstillæg 100% | B12: 119.62
A13: pr. time | B13: =B12+B7 -> 245.38
A15: Aftentillæg | B15: 18.8 | D15: Arbejde mellem 18:00 og 24:00, lørdag dog fra kl 14:00
A16: Nattillæg | B16: 21.81 | D16: Arbejde mellem 24:00 og 06:00
A17: Søndagstillæg | B17: 28.68
A19: Ledbus | B19: 3
A20: Trafiftælling | B20: 5
A21: Delt tjeneste | B21: 67 | D21: pr. arbejdsdag
B23: 07:24:00

Sheet Timeberegning
A1: Time beregning:
A2: Betalt pause ved vagt over 5 timer | H2: 00:25:00 | I2: minutter | J2: 00:00:00 | K2: 06:00:00 | L2: 18:00:00 | M2: 14:00:00
A3: vagt | B3: start | C3: slut | D3: Tid | E3: Pause 1 start | F3: Pause 1 start | G3: Tid | H3: Pause 2 start | I3: Pause 2 slut | J3: Tid | K3: Samlet pause | L3: Selv betalt pause | M3: Beregnet arbejdstid | N3: 1/100 | O3: Delevagt | P3: Afholdt afspadsering
A4: 111 | B4: 05:54:00 | C4: 14:57:00 | D4: =C4-B4+(B4>C4) -> 09:03:00 | E4: 10:34:00 | F4: 11:08:00 | G4: =TEXT(F4-E4,"t:mm") -> 0:34 | J4: =I4-H4 -> 00:00:00 | K4: =G4+J4 -> 00:34:00 | L4: =IF(K4>H$2,K4-H$2,0) -> 00:09:00 | M4: =D4-L4 -> 08:54:00 | N4: =24*M4 -> 8.9
A5: 112 | B5: 10:06:00 | C5: 16:38:00 | D5: =C5-B5+(B5>C5) -> 06:32:00 | E5: 14:00:00 | F5: 14:46:00 | G5: 0:46 | J5: =I5-H5 -> 00:00:00 | K5: =G5+J5 -> 00:46:00 | L5: =IF(K5>H$2,K5-H$2,0) -> 00:21:00 | M5: =D5-L5 -> 06:11:00 | N5: =24*M5 -> 6.183333333
A6: 113 | B6: 07:55:00 | C6: 16:19:00 | D6: =C6-B6+(B6>C6) -> 08:24:00 | G6: 0:00 | J6: 00:00:00 | K6: 00:00:00 | L6: 00:00:00 | M6: 08:24:00 | N6: 8.4
A7: 114 | B7: 09:48:00 | C7: 17:55:00 | D7: =C7-B7+(B7>C7) -> 08:07:00 | E7: 12:34:00 | F7: 12:58:00 | G7: 0:24 | H7: 15:04:00 | I7: 16:01:00 | J7: 00:57:00 | K7: 01:21:00 | L7: 00:56:00 | M7: 07:11:00 | N7: 7.183333333
A8: 121 | B8: 04:36:00 | C8: 11:24:00 | D8: =C8-B8+(B8>C8) -> 06:48:00 | E8: 08:30:00 | F8: 08:58:00 | G8: 0:28 | J8: 00:00:00 | K8: 00:28:00 | L8: 00:03:00 | M8: 06:45:00 | N8: 6.75
A9: 122 | B9: 04:36:00 | C9: 11:58:00 | D9: 07:22:00 | E9: 08:32:00 | F9: 08:51:00 | G9: 0:19 | H9: 09:22:00 | I9: 10:03:00 | J9: 00:41:00 | K9: 01:00:00 | L9: 00:35:00 | M9: 06:47:00 | N9: 6.783333333
A10: 123 | B10: 04:48:00 | C10: 12:24:00 | D10: 07:36:00 | E10: 06:32:00 | F10: 06:58:00 | G10: 0:26 | H10: 09:04:00 | I10: 09:43:00 | J10: 00:39:00 | K10: 01:05:00 | L10: 00:40:00 | M10: 06:56:00 | N10: 6.933333333
A11: 124 | B11: 05:20:00 | C11: 12:53:00 | D11: 07:33:00 | E11: 06:32:00 | F11: 07:01:00 | G11: 0:29 | J11: 00:00:00 | K11: 00:29:00 | L11: 00:04:00 | M11: 07:29:00 | N11: 7.483333333
A12: 125 | B12: 05:44:00 | C12: 14:53:00 | D12: 09:09:00 | E12: 09:52:00 | F12: 10:58:00 | G12: 1:06 | J12: 00:00:00 | K12: 01:06:00 | L12: 00:41:00 | M12: 08:28:00 | N12: 8.466666667
A13: 126 | B13: 05:56:00 | C13: 09:55:00 | D13: 03:59:00 | G13: 0:00 | J13: 00:00:00 | K13: =IF(G13="","",G13+J13) -> 00:00:00 | L13: =IF(K13="","",IF(K13>H$2,K13-H$2,0)) -> 00:00:00 | M13: =D13-L13 -> 03:59:00 | N13: =24*M13 -> 3.983333333
A14: 127 | B14: 05:55:00 | C14: 16:04:00 | D14: 10:09:00 | E14: 07:56:00 | F14: 08:56:00 | G14: 1:00 | H14: 11:02:00 | I14: 14:07:00 | J14: 03:05:00 | K14: =IF(G14="","",G14+J14) -> 04:05:00 | L14: =IF(K14="","",IF(K14>H$2,K14-H$2,0)) -> 03:40:00 | M14: 06:29:00 | N14: 6.483333333 | O14: 1
A15: 128 | B15: 05:58:00 | C15: 17:54:00 | D15: 11:56:00 | E15: 09:53:00 | F15: 13:07:00 | G15: =TEXT(F15-E15,"t:mm") -> 3:14 | H15: 15:02:00 | I15: 15:58:00 | J15: 00:56:00 | K15: 04:10:00 | L15: 03:45:00 | M15: 08:11:00 | N15: 8.183333333 | O15: 1
A16: 129 | B16: 05:59:00 | C16: 16:55:00 | D16: 10:56:00 | E16: 10:04:00 | F16: 13:43:00 | G16: 3:39 | H16: 14:17:00 | I16: 15:01:00 | J16: 00:44:00 | K16: 04:23:00 | L16: 03:58:00 | M16: 06:58:00 | N16: 6.966666667 | O16: 1
A17: 130 | B17: 06:00:00 | C17: 17:06:00 | D17: 11:06:00 | E17: 10:02:00 | F17: 11:58:00 | G17: 1:56 | H17: 13:53:00 | I17: 14:58:00 | J17: 01:05:00 | K17: 03:01:00 | L17: 02:36:00 | M17: 08:30:00 | N17: 8.5 | O17: 1
A18: 131 | B18: 06:55:00 | C18: 14:06:00 | D18: 07:11:00 | E18: 08:52:00 | F18: 09:58:00 | G18: 1:06 | J18: 00:00:00 | K18: 01:06:00 | L18: 00:41:00 | M18: 06:30:00 | N18: 6.5
A19: 132 | B19: 06:55:00 | C19: 15:55:00 | D19: 09:00:00 | E19: 08:51:00 | F19: 09:58:00 | G19: 1:07 | J19: 00:00:00 | K19: 01:07:00 | L19: 00:42:00 | M19: 08:18:00 | N19: 8.3
A20: 133 | B20: 07:05:00 | C20: 16:00:00 | D20: 08:55:00 | E20: 09:00:00 | F20: 10:01:00 | G20: 1:01 | J20: 00:00:00 | K20: 01:01:00 | L20: 00:36:00 | M20: 08:19:00 | N20: 8.316666667
A21: 134 | B21: 07:07:00 | C21: 16:16:00 | D21: 09:09:00 | E21: 10:52:00 | F21: 11:52:00 | G21: 1:00 | J21: 00:00:00 | K21: 01:00:00 | L21: 00:35:00 | M21: 08:34:00 | N21: 8.566666667
A22: 135 | B22: 10:55:00 | C22: 16:06:00 | D22: 05:11:00 | E22: 13:04:00 | F22: 13:58:00 | G22: 0:54 | J22: 00:00:00 | K22: 00:54:00 | L22: 00:29:00 | M22: 04:42:00 | N22: 4.7
A23: 136 | B23: 10:58:00 | C23: 18:06:00 | D23: 07:08:00 | E23: 12:53:00 | F23: 13:58:00 | G23: 1:05 | J23: 00:00:00 | K23: 01:05:00 | L23: 00:40:00 | M23: 06:28:00 | N23: 6.466666667
A24: 137 | B24: 11:07:00 | C24: 20:32:00 | D24: 09:25:00 | E24: 14:52:00 | F24: 15:58:00 | G24: 1:06 | J24: 00:00:00 | K24: 01:06:00 | L24: 00:41:00 | M24: 08:44:00 | N24: 8.733333333
A25: 138 | B25: 11:55:00 | C25: 20:55:00 | D25: 09:00:00 | E25: 15:52:00 | F25: 16:58:00 | G25: 1:06 | J25: 00:00:00 | K25: 01:06:00 | L25: 00:41:00 | M25: 08:19:00 | N25: 8.316666667
A26: 138X | B26: 11:55:00 | C26: 15:54:00 | D26: 03:59:00 | G26: 0:00 | J26: 00:00:00 | K26: 00:00:00 | L26: 00:00:00 | M26: 03:59:00 | N26: 3.983333333
A27: 138Y | B27: 16:55:00 | C27: 20:55:00 | D27: 04:00:00 | G27: 0:00 | J27: 00:00:00 | K27: 00:00:00 | L27: 00:00:00 | M27: 04:00:00 | N27: 4
A28: 139 | B28: 13:05:00 | C28: 19:55:00 | D28: 06:50:00 | E28: 17:02:00 | F28: 18:01:00 | G28: 0:59 | J28: 00:00:00 | K28: 00:59:00 | L28: 00:34:00 | M28: 06:16:00 | N28: 6.266666667
A29: 140 | B29: 14:55:00 | C29: 22:22:00 | D29: 07:27:00 | E29: 17:22:00 | F29: 17:58:00 | G29: 0:36 | J29: 00:00:00 | K29: 00:36:00 | L29: 00:11:00 | M29: 07:16:00 | N29: 7.266666667
A30: 141 | B30: 14:55:00 | C30: 21:23:00 | D30: 06:28:00 | E30: 18:51:00 | F30: 19:28:00 | G30: 0:37 | J30: 00:00:00 | K30: 00:37:00 | L30: 00:12:00 | M30: 06:16:00 | N30: 6.266666667
A31: 142 | B31: 15:05:00 | C31: 00:22:00 | D31: 09:17:00 | E31: 19:02:00 | F31: 20:13:00 | G31: 1:11 | J31: 00:00:00 | K31: 01:11:00 | L31: 00:46:00 | M31: 08:31:00 | N31: 8.516666667
A32: 143 | B32: 16:05:00 | C32: 23:12:00 | D32: 07:07:00 | E32: 18:00:00 | F32: 18:28:00 | G32: 0:28 | H32: 20:52:00 | I32: 21:16:00 | J32: 00:24:00 | K32: 00:52:00 | L32: 00:27:00 | M32: 06:40:00 | N32: 6.666666667
A33: 143F | B33: 16:05:00 | C33: 01:47:00 | D33: 09:42:00 | E33: 18:00:00 | F33: 18:28:00 | G33: 0:28 | H33: 23:10:00 | I33: 23:53:00 | J33: 00:43:00 | K33: =G33+J33 -> 01:11:00 | L33: =IF(K33>H$2,K33-H$2,0) -> 00:46:00 | M33: =D33-L33 -> 08:56:00 | N33: =24*M33 -> 8.933333333
A34: 144 | B34: 16:07:00 | C34: 23:23:00 | D34: 07:16:00 | E34: 18:02:00 | F34: 19:16:00 | G34: 1:14 | J34: 00:00:00 | K34: 01:14:00 | L34: 00:49:00 | M34: 06:27:00 | N34: 6.45
A35: 144F | B35: 16:07:00 | C35: 01:47:00 | D35: 09:40:00 | E35: 18:02:00 | F35: 19:16:00 | G35: 1:14 | H35: 23:21:00 | I35: 23:53:00 | J35: =I35-H35 -> 00:32:00 | K35: =G35+J35 -> 01:46:00 | L35: =IF(K35>H$2,K35-H$2,0) -> 01:21:00 | M35: =D35-L35 -> 08:19:00 | N35: =24*M35 -> 8.316666667
A36: 145 | B36: 16:58:00 | C36: 00:42:00 | D36: 07:44:00 | E36: 19:22:00 | F36: 20:13:00 | G36: 0:51 | J36: 00:00:00 | K36: 00:51:00 | L36: 00:26:00 | M36: 07:18:00 | N36: 7.3
A37: 146 | B37: 17:05:00 | C37: 01:10:00 | D37: 08:05:00 | E37: 19:00:00 | F37: 19:28:00 | G37: 0:28 | H37: 22:22:00 | I37: 23:00:00 | J37: 00:38:00 | K37: 01:06:00 | L37: 00:41:00 | M37: 07:24:00 | N37: 7.4
A38: 147 | B38: 17:25:00 | C38: 01:26:00 | D38: 08:01:00 | E38: 19:22:00 | F38: 19:51:00 | G38: 0:29 | H38: 22:20:00 | I38: 22:55:00 | J38: 00:35:00 | K38: 01:04:00 | L38: 00:39:00 | M38: 07:22:00 | N38: 7.366666667
A39: 148 | B39: 06:25:00 | C39: 17:25:00 | D39: 11:00:00 | E39: 08:25:00 | F39: 13:55:00 | G39: 5:30 | J39: 00:00:00 | K39: 05:30:00 | L39: 05:05:00 | M39: 05:55:00 | N39: 5.916666667 | O39: 1
A40: 601 | B40: 04:36:00 | C40: 12:24:00 | D40: 07:48:00 | E40: 06:32:00 | F40: 07:08:00 | G40: 0:36 | H40: 09:36:00 | I40: 10:01:00 | J40: 00:25:00 | K40: 01:01:00 | L40: 00:36:00 | M40: 07:12:00 | N40: 7.2
A41: 602 | B41: 04:36:00 | C41: 12:53:00 | D41: 08:17:00 | E41: 06:32:00 | F41: 06:58:00 | G41: 0:26 | H41: 09:58:00 | I41: 10:33:00 | J41: 00:35:00 | K41: 01:01:00 | L41: 00:36:00 | M41: 07:41:00 | N41: 7.683333333
A42: 603 | B42: 04:48:00 | C42: 12:02:00 | D42: 07:14:00 | E42: 06:32:00 | F42: 06:58:00 | G42: 0:26 | H42: 09:33:00 | I42: 10:08:00 | J42: 00:35:00 | K42: 01:01:00 | L42: 00:36:00 | M42: 06:38:00 | N42: 6.633333333
A43: 604 | B43: 05:20:00 | C43: 14:06:00 | D43: 08:46:00 | E43: 06:32:00 | F43: 07:01:00 | G43: 0:29 | H43: 10:51:00 | I43: 11:26:00 | J43: 00:35:00 | K43: 01:04:00 | L43: 00:39:00 | M43: 08:07:00 | N43: 8.116666667
A44: 605 | B44: 05:58:00 | C44: 12:54:00 | D44: 06:56:00 | E44: 06:32:00 | F44: 06:58:00 | G44: 0:26 | H44: 10:22:00 | I44: 10:58:00 | J44: 00:36:00 | K44: 01:02:00 | L44: 00:37:00 | M44: 06:19:00 | N44: 6.316666667
A45: 606 | B45: 06:07:00 | C45: 15:15:00 | D45: 09:08:00 | E45: 12:04:00 | F45: 12:51:00 | G45: 0:47 | J45: 00:00:00 | K45: 00:47:00 | L45: 00:22:00 | M45: 08:46:00 | N45: 8.766666667
A46: 607 | B46: 07:55:00 | C46: 15:24:00 | D46: 07:29:00 | E46: 12:02:00 | F46: 12:27:00 | G46: 0:25 | J46: 00:00:00 | K46: 00:25:00 | L46: 00:00:00 | M46: 07:29:00 | N46: 7.483333333
A47: 608 | B47: 08:07:00 | C47: 16:04:00 | D47: 07:57:00 | E47: 11:22:00 | F47: 12:08:00 | G47: 0:46 | J47: 00:00:00 | K47: 00:46:00 | L47: 00:21:00 | M47: 07:36:00 | N47: 7.6
A48: 609 | B48: 08:55:00 | C48: 17:05:00 | D48: 08:10:00 | E48: 11:26:00 | F48: 11:51:00 | G48: 0:25 | H48: 14:51:00 | I48: 15:11:00 | J48: 00:20:00 | K48: 00:45:00 | L48: 00:20:00 | M48: 07:50:00 | N48: 7.833333333
A49: 610 | B49: 12:07:00 | C49: 18:44:00 | D49: 06:37:00 | E49: 16:00:00 | F49: 16:25:00 | G49: 0:25 | J49: 00:00:00 | K49: 00:25:00 | L49: 00:00:00 | M49: 06:37:00 | N49: 6.616666667
A50: 611 | B50: 13:55:00 | C50: 22:22:00 | D50: 08:27:00 | E50: 18:00:00 | F50: 18:28:00 | G50: 0:28 | J50: 00:00:00 | K50: 00:28:00 | L50: 00:03:00 | M50: 08:24:00 | N50: 8.4
A51: 612 | B51: 14:55:00 | C51: 00:22:00 | D51: 09:27:00 | E51: 18:52:00 | F51: 19:28:00 | G51: 0:36 | H51: 21:21:00 | I51: 21:51:00 | J51: 00:30:00 | K51: 01:06:00 | L51: 00:41:00 | M51: 08:46:00 | N51: 8.766666667
A52: 613 | B52: 14:55:00 | C52: 00:42:00 | D52: 09:47:00 | E52: 19:22:00 | F52: 20:13:00 | G52: 0:51 | J52: 00:00:00 | K52: 00:51:00 | L52: 00:26:00 | M52: 09:21:00 | N52: 9.35
A53: 614 | B53: 15:55:00 | C53: 01:10:00 | D53: 09:15:00 | E53: 18:04:00 | F53: 18:31:00 | G53: 0:27 | H53: 22:20:00 | I53: 22:55:00 | J53: 00:35:00 | K53: 01:02:00 | L53: 00:37:00 | M53: 08:38:00 | N53: 8.633333333
A54: 615 | B54: 16:48:00 | C54: 01:47:00 | D54: 08:59:00 | E54: 20:52:00 | F54: 21:16:00 | G54: 0:24 | H54: 23:10:00 | I54: 23:53:00 | J54: 00:43:00 | K54: 01:07:00 | L54: 00:42:00 | M54: 08:17:00 | N54: 8.283333333
A55: 616 | B55: 16:55:00 | C55: 01:47:00 | D55: 08:52:00 | E55: 18:51:00 | F55: 19:26:00 | G55: 0:35 | H55: 23:21:00 | I55: 23:53:00 | J55: 00:32:00 | K55: 01:07:00 | L55: 00:42:00 | M55: 08:10:00 | N55: 8.166666667
A56: 617 | B56: 18:35:00 | C56: 01:26:00 | D56: 06:51:00 | E56: 22:20:00 | F56: 22:45:00 | G56: 0:25 | J56: 00:00:00 | K56: 00:25:00 | L56: 00:00:00 | M56: 06:51:00 | N56: 6.85
A57: 701 | B57: 04:36:00 | C57: 12:24:00 | D57: 07:48:00 | E57: 06:32:00 | F57: 07:08:00 | G57: 0:36 | H57: 09:36:00 | I57: 10:01:00 | J57: 00:25:00 | K57: 01:01:00 | L57: 00:36:00 | M57: 07:12:00 | N57: 7.2
A58: 702 | B58: 04:36:00 | C58: 12:53:00 | D58: 08:17:00 | E58: 06:32:00 | F58: 06:58:00 | G58: 0:26 | H58: 09:58:00 | I58: 10:33:00 | J58: 00:35:00 | K58: 01:01:00 | L58: 00:36:00 | M58: 07:41:00 | N58: 7.683333333
A59: 703 | B59: 04:48:00 | C59: 12:02:00 | D59: 07:14:00 | E59: 06:32:00 | F59: 06:58:00 | G59: 0:26 | H59: 09:33:00 | I59: 10:08:00 | J59: 00:35:00 | K59: 01:01:00 | L59: 00:36:00 | M59: 06:38:00 | N59: 6.633333333
A60: 704 | B60: 05:20:00 | C60: 14:06:00 | D60: 08:46:00 | E60: 06:32:00 | F60: 07:01:00 | G60: 0:29 | H60: 10:51:00 | I60: 11:26:00 | J60: 00:35:00 | K60: 01:04:00 | L60: 00:39:00 | M60: 08:07:00 | N60: 8.116666667
A61: 705 | B61: 05:58:00 | C61: 12:54:00 | D61: 06:56:00 | E61: 06:32:00 | F61: 06:58:00 | G61: 0:26 | H61: 10:22:00 | I61: 10:58:00 | J61: 00:36:00 | K61: 01:02:00 | L61: 00:37:00 | M61: 06:19:00 | N61: 6.316666667
A62: 706 | B62: 06:07:00 | C62: 15:15:00 | D62: 09:08:00 | E62: 12:04:00 | F62: 12:51:00 | G62: 0:47 | J62: 00:00:00 | K62: 00:47:00 | L62: 00:22:00 | M62: 08:46:00 | N62: 8.766666667
A63: 707 | B63: 07:55:00 | C63: 15:24:00 | D63: 07:29:00 | E63: 12:02:00 | F63: 12:27:00 | G63: 0:25 | J63: 00:00:00 | K63: 00:25:00 | L63: 00:00:00 | M63: 07:29:00 | N63: 7.483333333
A64: 708 | B64: 08:07:00 | C64: 16:04:00 | D64: 07:57:00 | E64: 11:22:00 | F64: 12:08:00 | G64: 0:46 | J64: 00:00:00 | K64: 00:46:00 | L64: 00:21:00 | M64: 07:36:00 | N64: 7.6
A65: 709 | B65: 08:55:00 | C65: 17:05:00 | D65: 08:10:00 | E65: 11:26:00 | F65: 11:51:00 | G65: 0:25 | H65: 14:51:00 | I65: 15:11:00 | J65: 00:20:00 | K65: 00:45:00 | L65: 00:20:00 | M65: 07:50:00 | N65: 7.833333333
A66: 710 | B66: 12:07:00 | C66: 18:44:00 | D66: 06:37:00 | E66: 16:00:00 | F66: 16:25:00 | G66: 0:25 | J66: 00:00:00 | K66: 00:25:00 | L66: 00:00:00 | M66: 06:37:00 | N66: 6.616666667
A67: 711 | B67: 13:55:00 | C67: 22:22:00 | D67: 08:27:00 | E67: 18:00:00 | F67: 18:28:00 | G67: 0:28 | J67: 00:00:00 | K67: 00:28:00 | L67: 00:03:00 | M67: 08:24:00 | N67: 8.4
A68: 712 | B68: 14:55:00 | C68: 00:22:00 | D68: 09:27:00 | E68: 18:52:00 | F68: 19:28:00 | G68: 0:36 | H68: 21:21:00 | I68: 21:51:00 | J68: 00:30:00 | K68: 01:06:00 | L68: 00:41:00 | M68: 08:46:00 | N68: 8.766666667
A69: 713 | B69: 14:55:00 | C69: 00:42:00 | D69: 09:47:00 | E69: 19:22:00 | F69: 20:13:00 | G69: 0:51 | J69: 00:00:00 | K69: 00:51:00 | L69: 00:26:00 | M69: 09:21:00 | N69: 9.35
A70: 714 | B70: 15:55:00 | C70: 01:10:00 | D70: 09:15:00 | E70: 18:04:00 | F70: 18:31:00 | G70: 0:27 | H70: 22:20:00 | I70: 22:55:00 | J70: 00:35:00 | K70: 01:02:00 | L70: 00:37:00 | M70: 08:38:00 | N70: 8.633333333
A71: 715 | B71: 16:48:00 | C71: 01:47:00 | D71: 08:59:00 | E71: 20:52:00 | F71: 21:16:00 | G71: 0:24 | H71: 23:10:00 | I71: 23:53:00 | J71: 00:43:00 | K71: 01:07:00 | L71: 00:42:00 | M71: 08:17:00 | N71: 8.283333333
A72: 716 | B72: 16:55:00 | C72: 01:47:00 | D72: 08:52:00 | E72: 18:51:00 | F72: 19:26:00 | G72: 0:35 | H72: 23:21:00 | I72: 23:53:00 | J72: =I72-H72 -> 00:32:00 | K72: =G72+J72 -> 01:07:00 | L72: =IF(K72>H$2,K72-H$2,0) -> 00:42:00 | M72: 08:10:00 | N72: 8.166666667
A73: 717 | B73: 18:35:00 | C73: 01:26:00 | D73: 06:51:00 | E73: 22:20:00 | F73: 22:45:00 | G73: 0:25 | J73: 00:00:00 | K73: 00:25:00 | L73: 00:00:00 | M73: 06:51:00 | N73: 6.85
A75: afsp. | P75: 07:24:00
A76: x
A77: Fri
A78: ferie

Sheet Ark1
A1: Koder
A2: Dataløn | B2: BusPlan | C2: Nr. | D2: Navn: | G2: Anc.
C3: 1807 | D3: Bjarne Hansen | G3: 3
D4: TAST HER
B5: 001 | C5: Køretid | E5: =Satser!B3 -> 119.62 | F5: =D5*E5 -> 0
B6: 3025 | C6: Timer | D6: ='Juni2010 (2)'!G36 -> 151.78 | E6: =Satser!B3 -> 119.62 | F6: =D6*E6 -> 18155.9236
B7: 3210 | C7: Delt vagt | D7: ='Juni2010 (2)'!M35 -> 1 | E7: =Satser!B21 -> 67 | F7: =D7*E7 -> 67
B8: 3405 | C8: Overarb. 50% | D8: ='Juni2010 (2)'!H36 -> 0 | E8: =Satser!B10 -> 185.57 | F8: =D8*E8 -> 0
B9: 3410 | C9: Overarb. 100% | D9: ='Juni2010 (2)'!I36 -> 0 | E9: =Satser!B13 -> 245.38 | F9: =D9*E9 -> 0
B10: 3600 | C10: Forskudt 18-24 | D10: ='Juni2010 (2)'!J36 -> 60.45 | E10: =Satser!B15 -> 18.8 | F10: =D10*E10 -> 1136.46
B11: 3602 | C11: Nattid 24-06 | D11: ='Juni2010 (2)'!K36 -> 13.02 | E11: =Satser!B16 -> 21.81 | F11: 283.9662
B12: 3605 | C12: Week-end | D12: ='Juni2010 (2)'!L36 -> 24.53 | E12: =Satser!B17 -> 28.68 | F12: 703.5204
B13: 3024 | C13: Till.pr.arb.Dag | E13: 5 | F13: 0
B14: 3211 | C14: Tælling | E14: 5 | F14: 0
B15: 3997 | C15: Sygedagpenge | E15: 667 | F15: 0
C16: Uniformspenge | E16: 10.5 | F16: 0
C17: ½ G-dag | E17: 334 | F17: 0
C18: G-dag | E18: 667 | F18: 0
C19: Diverse tillæg | F19: 0
C20: Regulering timer - | E20: =Satser!B3 -> 119.62 | F20: 0
C21: Regulering 18-24 - | E21: =Satser!B15 -> 18.8 | F21: 0
C22: Regulering 24-06 - | E22: =Satser!B16 -> 21.81 | F22: 0
C23: Regulering Søn - | E23: =Satser!B17 -> 28.68 | F23: 0
C24: Regulering Delt vagt | E24: =Satser!B21 -> 67 | F24: 0
D25: Sum | F25: =SUM(F5:F24) -> 20346.8702
C26: Anc.Tillæg | D26: =D6 -> 151.78 | E26: =IF(G3=0,"0",IF(G3=1,"4,26",IF(G3=3,"5,34","4,80"))) -> 5,34 | F26: =D26*E26 -> 810.5052
D27: Bruttoløn | F27: =F25+F26 -> 21157.3754
C28: Km-penge | E28: 3.3 | F28: =D28*E28 -> 0
D30: 14 dg | E30: time
B31: 1 | C31: Anc.Tillæg | D31: 315.15 | E31: =D31/74 -> 4.258783784
B32: 2 | C32: Anc.Tillæg | D32: 355.2 | E32: =D32/74 -> 4.8
B33: 3 | C33: Anc.Tillæg | D33: 395.16 | E33: =D33/74 -> 5.34

Sheet Ark2
A1: start | B1: slut | D1: tid | E1: pause start | F1: pause slut | G1: tid
A2: 13:55:00 | B2: 22:11:00 | D2: =B2-A2 -> 0.3444444444 | E2: 19:52:00 | F2: 20:17:00 | G2: =TEXT(F2-E2,"t:mm") -> 0:25 | I2: =TEXT(D2-G2,"t:mm") -> 7:51
A3: 14:10:00 | B3: 1 | D3: =B3-A3 -> 09:50:00
A4: 00:00:00 | B4: 00:11:00 | D4: =B4-A4 -> 00:11:00
A5: 2010-06-10T14:10:00 | B5: 2010-06-11T00:11:00 | D5: =B5-A5 -> 10:01:00
D6: =SUM(D2:D5) -> 1.179166667 | E6: =D6*24 -> 28.3

Sheet Ark3
